Cogmind - Beta 12 X1 @@@ ROGUE MODE // 2022.07.26 @ 12:15:18 Player: Kyzrati Result: Escaped! Performance ------------- Evolutions (9) 4500 Regions Visited (32) 6400 Robots Destroyed (272) 1360 Value Destroyed (23913) 23913 Prototype IDs (52) 1040 Alien Tech Used (0) 0 Bonus (27856) 27856 TOTAL SCORE: 65069 Bonus ------- High Alert Combat Kills 812 Follower Combat Kills 15951 Entered Garrisons 2600 Used RIF Installer 7500 Aligned with FarCom 300 Win 3000 Friendly Fire -2307 Cogmind --------- Core Integrity 1430/1600 Matter 296/300 Energy 386/400 System Corruption 7% Temperature Cool (6) Movement Treading (145) Location To Epsilon Eridani Parts ------- > --- POWER (3) -------- Backup Power III Micro Antimatter Reactor Quantum Reactor > --- PROPULSION (4) --- Biometal Heavy Treads Biometal Heavy Treads > --- UTILITY (15) ----- High-capacity Storage Unit Experimental Optical Array Advanced Powered Armor Relay Coupler [NC] (24) Relay Coupler [C] (45) Relay Coupler [C] (52) Relay Coupler [C] (51) Relay Coupler [C] (42) Relay Coupler [C] (39) Relay Coupler [Sentry] (21) Relay Coupler [Specialist] (30) Relay Coupler [Hunter] (17) Relay Coupler [Heavy] (4) Relay Coupler [Behemoth] (2) Relay Coupler [Proto] (10) > --- WEAPON (3) ------- Heavy Mass Driver Nanosword > --- INVENTORY (20) --- Advanced Powered Armor Advanced Powered Armor Advanced Powered Armor Advanced Powered Armor Antimissile System Relay Coupler [NC] (38) Relay Coupler [C] (46) Relay Coupler [Sentry] (21) Relay Coupler [Hunter] (17) Relay Coupler [Hunter] (19) Relay Coupler [Hunter] (12) Enhanced Nova Cannon Linear Accelerator Linear Accelerator Compact Tesla Bomb Launcher Fusion Bomb Launcher Advanced Remote Datajack Advanced Remote Datajack Peak State ------------ > --- POWER ------------ Light Antimatter Reactor Light Antimatter Reactor > --- PROPULSION ------- Biometal Heavy Treads Advanced Heavy Siege Treads > --- UTILITY ---------- Huge Storage Unit Experimental Optical Array Advanced Powered Armor Relay Coupler [C] Relay Coupler [C] Relay Coupler [C] Relay Coupler [C] Relay Coupler [C] Relay Coupler [C] Relay Coupler [C] Relay Coupler [C] Relay Coupler [Specialist] Relay Coupler [Hunter] Relay Coupler [Heavy] > --- WEAPON ----------- Linear Accelerator Advanced Remote Datajack Force Lance > --- INVENTORY -------- Biometal Heavy Treads Advanced Powered Armor Advanced Powered Armor Advanced Powered Armor Advanced Powered Armor Antimissile System Relay Coupler [NC] Relay Coupler [NC] Relay Coupler [C] Relay Coupler [C] Relay Coupler [C] Relay Coupler [C] Relay Coupler [Specialist] Relay Coupler [Hunter] Relay Coupler [Hunter] Relay Coupler [Hunter] Relay Coupler [Heavy] Relay Coupler [Behemoth] Enhanced Nova Cannon Heavy Flak Cannon Compact Tesla Bomb Launcher Fusion Bomb Launcher Advanced Remote Datajack [Rating: 186] Favorites ----------- Power Light Antimatter Reactor Engine Light Angular Momentum Engine Power Core Light Nuclear Core Reactor Light Antimatter Reactor Propulsion Advanced Heavy Siege Treads Treads Advanced Heavy Siege Treads Leg Improved Carbon-fiber Leg Wheel Armored Wheel Utility Relay Coupler [C] Device Improved Kinecellerator Storage Huge Storage Unit Processor Experimental Optical Array Hackware Relay Coupler [C] Protection Advanced Powered Armor Weapon Tri-rail Accelerator Energy Gun Precision Beam Rifle Energy Cannon Enhanced Nova Cannon Ballistic Gun Autogun Ballistic Cannon Tri-rail Accelerator Launcher Compact Tesla Bomb Launcher Special Weapon Improved Remote Datajack Impact Weapon Heavy Flail Slashing Weapon Nanosword Piercing Weapon Force Lance Build | -11 -10 -10 -10 -9 -8 -7 -7 -7 -7 -6 -6 -5 -5 -5 -5 -4 -4 -4 -4 -3 -3 -3 -3 -2 -2 -2 -2 -2 -2 -2 -2 -1 ------- Run | Scr Mat Min Exi Min Mat Fac Gar Fac Gar Fac Gar Fac Gar Fac Gar Fac Gar Fac Gar Res Gar Res Gar Res Gar Res Gar Res Gar Res Gar Acc Slots Evolved 18 | . . . . . 4 2 . . . 2 . 2 . . . 2 . . . 2 . . . 2 . . . . . . . 2 Power 2 | . . . . . . . . . . . . . . . . 1 . . . . . . . . . . . . . . . 1 Propulsion 2 | . . . . . 1 . . . . . . 1 . . . . . . . . . . . . . . . . . . . . Utility 13 | . . . . . 2 2 . . . 2 . 1 . . . 1 . . . 2 . . . 2 . . . . . . . 1 Weapon 1 | . . . . . 1 . . . . . . . . . . . . . . . . . . . . . . . . . . . Parts Attached 667 | 7 22 1 3 2 43 4 16 34 22 4 33 5 35 26 27 24 28 20 31 3 26 4 23 4 26 5 17 79 27 2 21 43 Power 48 | 1 3 . . . 3 . 1 1 1 . 3 . 1 3 1 3 . 6 1 . 1 . 2 . 1 2 . 6 2 . 1 5 Engine 14 | 1 3 . . . 1 . . 1 1 . 3 . . 1 1 . . . . . . . . . . . . . . . . 2 Core 4 | . . . . . 2 . 1 . . . . . . . . 1 . . . . . . . . . . . . . . . . Reactor 30 | . . . . . . . . . . . . . 1 2 . 2 . 6 1 . 1 . 2 . 1 2 . 6 2 . 1 3 Propulsion 43 | 2 10 . 2 . 6 . 3 2 . . 1 1 3 . . 1 . . . . . . . 2 . 2 1 5 . . . 2 Treads 31 | 2 10 . . . 3 . . . . . . . 3 . . 1 . . . . . . . 2 . 2 1 5 . . . 2 Leg 3 | . . . . . 3 . . . . . . . . . . . . . . . . . . . . . . . . . . . Wheel 9 | . . . 2 . . . 3 2 . . 1 1 . . . . . . . . . . . . . . . . . . . . Hover . | . . . . . . . . . . . . . . . . . . . . . . . . . . . . . . . . . Flight . | . . . . . . . . . . . . . . . . . . . . . . . . . . . . . . . . . Utility 240 | 1 3 1 1 . 13 3 3 13 7 2 10 3 14 8 14 9 14 6 10 2 14 3 14 1 11 . 4 16 10 1 13 16 Device 33 | . 1 1 . . 3 1 2 6 1 . 2 1 3 2 . . 1 . . . . 1 . 1 . . . 6 . . 1 . Storage 10 | 1 2 . 1 . . . . 2 . . . . . . . 1 . . . . . . . . . . . 1 . . . 2 Processor 10 | . . . . . 5 . . 1 . . 1 . . 2 . 1 . . . . . . . . . . . . . . . . Hackware 141 | . . . . . . . . 2 5 1 3 1 8 . 13 5 8 6 10 1 12 2 14 . 11 . 4 8 7 1 9 10 Protection 46 | . . . . . 5 2 1 2 1 1 4 1 3 4 1 2 5 . . 1 2 . . . . . . 1 3 . 3 4 Artifact . | . . . . . . . . . . . . . . . . . . . . . . . . . . . . . . . . . Weapon 336 | 3 6 . . 2 21 1 9 18 14 2 19 1 17 15 12 11 14 8 20 1 11 1 7 1 14 1 12 52 15 1 7 20 Energy Gun 10 | 2 1 . . . 5 . . 1 . . . . 1 . . . . . . . . . . . . . . . . . . . Energy Cannon 20 | . . . . . 5 . . 1 . . . . . 3 2 1 3 . 1 . 1 . . . . . . 1 . . . 2 Ballistic Gun 44 | 1 5 . . 2 10 1 4 8 2 . 4 . 1 1 . 1 2 1 1 . . . . . . . . . . . . . Ballistic Cannon 21 | . . . . . . . . 1 1 . 2 . . 1 . 1 . . 3 . 2 . 1 . 1 . . 1 2 . 4 1 Launcher 9 | . . . . . 1 . . 1 . . . . . . . 1 . . 1 . . . . . 1 . . 2 . . . 2 Special Weapon 112 | . . . . . . . . 2 5 1 6 1 7 4 4 4 4 4 6 1 4 1 2 1 6 1 6 26 6 1 1 8 Impact Weapon 30 | . . . . . . . 5 4 6 1 7 . 7 . . . . . . . . . . . . . . . . . . . Slashing Weapon 6 | . . . . . . . . . . . . . . . . . . . . . . . . . . . . . . . . 6 Piercing Weapon 84 | . . . . . . . . . . . . . 1 6 6 3 5 3 8 . 4 . 4 . 6 . 6 22 7 . 2 1 Special Melee Weapon . | . . . . . . . . . . . . . . . . . . . . . . . . . . . . . . . . . Unidentified Prototypes 19 | . . . . . 5 1 1 7 . . . . 1 . . 1 . . . . . . . 1 . 1 . 1 . . . . Parts Lost 40 | . 1 . . . 5 . 2 . . . 4 . 2 . . . . 1 1 1 . . 1 . 4 . . 7 1 . 3 7 Power 13 | . . . . . 3 . 1 . . . 1 . . . . . . 1 1 1 . . . . 1 . . 1 . . 1 2 Propulsion 2 | . . . . . . . . . . . 1 . 1 . . . . . . . . . . . . . . . . . . . Utility 18 | . . . . . 1 . 1 . . . 1 . 1 . . . . . . . . . 1 . 2 . . 6 . . 1 4 Weapon 7 | . 1 . . . 1 . . . . . 1 . . . . . . . . . . . . . 1 . . . 1 . 1 1 Highest Loss Streak 4 | . 1 . . . 2 . 1 . . . 1 . 1 . . . . 1 1 1 . . 1 . 2 . . 4 1 . 2 2 To Critical Strikes 1 | . . . . . . . . . . . . . . . . . . . . . . . . . 1 . . . . . . . Average Slot Usage (%) 82 | . 88 100 100 100 92 93 99 95 89 86 85 87 80 76 75 74 77 76 76 65 75 75 77 76 77 82 82 79 84 86 89 84 Engine 2 | . 13 14 14 14 7 . . 6 7 6 6 5 3 3 5 3 . . . . . . . . . . . . . . . 3 Reactor 4 | . . . . . . . . . . . . . 1 1 . 1 10 9 10 6 4 9 9 8 7 8 8 7 7 8 7 7 Treads 7 | . 27 28 27 . 3 . . . . . . . 3 11 11 9 10 10 10 9 9 9 9 8 8 8 8 8 8 8 8 8 Leg 1 | . . . . . 17 23 21 . . . . . . . . . . . . . . . . . . . . . . . . . Wheel 3 | . . . . 28 6 . 1 22 23 20 14 17 11 . . . . . . . . . . . . . . . . . . . Device 2 | . 3 14 14 14 . 14 15 10 2 6 8 5 4 2 . . . . . . . . . 2 . . . 1 1 . . 1 Storage 5 | . 14 14 14 14 9 7 7 7 7 6 6 5 5 5 5 5 5 5 5 4 4 4 4 4 4 4 4 4 4 4 4 4 Processor 6 | . . . . . 16 12 7 10 15 13 19 17 12 11 9 7 5 5 5 4 4 4 4 4 4 4 4 4 4 4 4 4 Hackware 26 | . . . . . . . . 5 15 6 8 9 17 19 24 26 27 29 29 23 29 27 32 34 38 43 43 40 41 46 44 40 Protection 5 | . . . . . 3 4 14 10 2 13 6 10 5 6 5 4 7 5 5 4 7 9 7 4 4 4 4 3 5 4 5 8 Energy Gun 1 | . 9 . . . 2 15 15 7 . . . . . . . . . . . . . . . . . . . . . . . . Ballistic Gun 3 | . 18 28 28 28 22 7 5 5 1 2 . . 3 4 . . 4 4 2 . . . . . . . . . . . . . Ballistic Cannon 2 | . . . . . . . . 3 6 6 5 5 1 . 5 4 . . 2 . 3 4 3 4 3 4 4 4 4 4 4 3 Special Weapon 2 | . . . . . . . . . 2 3 2 3 1 2 3 4 2 4 1 3 2 . 2 4 1 . 2 2 1 4 3 2 Piercing Weapon 1 | . . . . . . . . . . . . . . 2 1 . 2 . 2 4 1 3 1 . 2 3 1 1 2 . 3 . Naked Turns . | . . . . . . . . . . . . . . . . . . . . . . . . . . . . . . . . . Heaviest Build 169 | 14 21 21 51 51 59 65 70 130 120 128 131 132 133 136 137 147 154 147 157 134 166 159 159 154 156 154 156 158 168 155 161 169 Greatest Support 160 | 40 40 40 40 24 54 54 54 36 36 36 40 52 160 160 160 160 160 160 160 160 160 160 160 160 160 160 155 155 155 155 155 155 Greatest Overweight (x) 4 | . . . 2 2 2 1 1 4 3 3 4 2 3 . . . . . . . 1 . 1 1 . . 1 1 1 . 1 1 Average Overweight (x) . | . . . . 2 . . 1 2 2 3 2 2 1 . . . . . . . . . . . . . . . . . . . Largest Inventory Capacity 25 | 8 20 10 20 20 20 20 20 25 25 25 25 25 25 25 25 25 25 25 25 25 25 25 25 25 25 25 25 25 25 25 25 25 Average Capacity 23 | 6 9 10 19 20 20 20 20 24 25 25 25 25 25 25 25 25 25 25 25 25 25 25 25 25 25 25 25 25 25 25 25 22 Most Carried 25 | 6 10 10 16 18 20 20 20 25 25 24 25 25 25 25 25 25 25 24 25 24 25 25 25 25 25 25 25 25 25 25 25 25 Average Carried 22 | 4 8 9 14 16 18 19 19 23 24 23 22 24 24 24 24 24 24 21 23 21 23 23 23 24 23 24 24 24 24 24 24 20 Final Capacity 25 | 8 10 10 20 20 20 20 20 25 25 25 25 25 25 25 25 25 25 25 25 25 25 25 25 25 25 25 25 25 25 25 25 20 Final Carried 25 | 6 10 10 16 17 20 20 20 25 25 23 25 25 25 25 25 23 24 21 23 21 24 23 25 24 24 25 25 24 25 25 25 18 Class Distribution -------------------- 72% | Botlord-Mutant 8% | Mutant 5% | Bothacker-Mutant Dominant Class ---------------- Mutant | -10/Materials Mutant | -10/Mines Mutant | -10/Exiles Mutant | -9/Mines Skirmisher | -8/Materials Skirmisher | -7/Factory Scavenger-Tank | -7/Garrison Bothacker-Mutant | -7/Factory Bothacker-Mutant | -7/Garrison Bothacker-Mutant | -6/Factory Bothacker-Mutant | -6/Garrison Botlord-Mutant | -5/Factory Botlord-Mutant | -5/Garrison Botlord-Mutant | -5/Factory Botlord-Mutant | -5/Garrison Botlord-Mutant | -4/Factory Botlord-Mutant | -4/Garrison Botlord-Mutant | -4/Factory Botlord-Mutant | -4/Garrison Botlord-Mutant | -3/Research Botlord-Mutant | -3/Garrison Botlord-Mutant | -3/Research Botlord-Mutant | -3/Garrison Botlord-Mutant | -2/Research Botlord-Mutant | -2/Garrison Botlord-Mutant | -2/Research Botlord-Mutant | -2/Garrison Botlord-Mutant | -2/Research Botlord-Mutant | -2/Garrison Botlord-Mutant | -2/Research Botlord-Mutant | -2/Garrison Botlord-Mutant | -1/Access Resources | -11 -10 -10 -10 -9 -8 -7 -7 -7 -7 -6 -6 -5 -5 -5 -5 -4 -4 -4 -4 -3 -3 -3 -3 -2 -2 -2 -2 -2 -2 -2 -2 -1 ----------- Run | Scr Mat Min Exi Min Mat Fac Gar Fac Gar Fac Gar Fac Gar Fac Gar Fac Gar Fac Gar Res Gar Res Gar Res Gar Res Gar Res Gar Res Gar Acc Matter Collected 16077 | 231 228 190 10 161 1056 . 388 469 420 . 807 7 792 372 702 815 504 462 592 112 725 85 410 119 609 . 444 1854 980 89 817 1627 Remotely . | . . . . . . . . . . . . . . . . . . . . . . . . . . . . . . . . . Salvage Created 11604 | . 476 12 . 248 1108 . 866 517 108 . 803 1 1237 710 413 745 390 267 133 . 290 16 . . 179 . 38 1431 406 . 381 829 Parts 585 | . 29 . . 19 61 . 30 27 9 . 26 . 28 49 18 39 22 18 7 . 15 4 . . 13 . . 94 17 . 12 48 Haulers Intercepted 5 | . 1 . . . 3 . . . . . . . . . . . . . . . . . . . . . . 1 . . . . Recyclers Shooed 10 | . 1 . . 1 2 . . . . . . . . 1 . . . . . . . . . . . . . 5 . . . . Parts Field Recycled . | . . . . . . . . . . . . . . . . . . . . . . . . . . . . . . . . . Retrieved Matter . | . . . . . . . . . . . . . . . . . . . . . . . . . . . . . . . . . Parts Self-Destructed . | . . . . . . . . . . . . . . . . . . . . . . . . . . . . . . . . . Prevented . | . . . . . . . . . . . . . . . . . . . . . . . . . . . . . . . . . Kills | -11 -10 -10 -10 -9 -8 -7 -7 -7 -7 -6 -6 -5 -5 -5 -5 -4 -4 -4 -4 -3 -3 -3 -3 -2 -2 -2 -2 -2 -2 -2 -2 -1 ------- Run | Scr Mat Min Exi Min Mat Fac Gar Fac Gar Fac Gar Fac Gar Fac Gar Fac Gar Fac Gar Res Gar Res Gar Res Gar Res Gar Res Gar Res Gar Acc Combat Hostiles Destroyed 211 | . 11 2 . 6 20 . 16 5 4 . 23 . 17 11 12 7 10 5 3 . 6 . . . 5 . 1 22 6 . 6 13 Melee 10 | . . . . . . . . . . . . . 1 . . . 2 . 1 . . . . . . . . 2 3 . 1 . Guns 86 | . 10 2 . 6 19 . 16 3 . . 1 . 7 9 . . 8 5 . . . . . . . . . . . . . . Cannons 97 | . . . . . . . . 2 4 . 21 . 7 2 11 7 . . 1 . 6 . . . 1 . 1 18 3 . 5 8 AOE 11 | . 1 . . . . . . . . . . . 1 . 1 . . . 1 . . . . . 3 . . 1 . . . 3 Classes Destroyed 17 | . 4 1 . 2 2 . 2 1 . . 1 . . . . . . . . . . . . . 1 . . 2 . . . 1 Worker 9 | . . . . 1 . . . . . . . . . 3 . 1 . . . . . . . . . . . 2 . . . 2 Builder 16 | . . . . . . . . 1 . . . . . 1 . . . 1 . . . 1 . . . . . 9 . . . 3 Tunneler 2 | . . . . . . . . . . . . . . . . . . . . . . . . . . . . 1 . . . 1 Hauler 5 | . 1 . . . 3 . . . . . . . . . . . . . . . . . . . . . . 1 . . . . Recycler 10 | . . . . 2 1 . . 2 . . . . . . . 3 . . . . . . . . . . . 2 . . . . Watcher 13 | . 1 . . . . . . 4 . . . 1 . 3 . 3 . 1 . . . . . . . . . . . . . . Swarmer 46 | . 3 . . 6 2 . . . . . 2 . 6 4 4 . 6 3 1 . 2 . . . 1 . . 1 2 . 2 1 Cutter 7 | . . . . . . . . . . . . . . . . . . . . . . . . . 4 . . 2 . . 1 . Saboteur 3 | . . . . . . . . . . . 2 . . . . . . . . . . . . . . . . . 1 . . . Grunt 75 | . 8 . . . 15 . 7 1 . . 11 . 9 3 4 1 3 1 1 . 3 . . . . . 1 1 2 . 2 2 Duelist 6 | . . . . . 1 . 1 . . . 4 . . . . . . . . . . . . . . . . . . . . . Sentry 16 | . . . . . 2 . 3 1 1 . 1 . 1 . 4 . . . . . 1 . . . . . . . 1 . . 1 Specialist 3 | . . . . . . . . . . . . . . . . . . . . . . . . . . . . 2 1 . . . Hunter 9 | . . . . . . . 2 . . . . . . 1 . . . . . . . . . . . . . 1 . . 1 4 Programmer 50 | . . . . . . . 3 3 3 . 3 . 1 4 . 7 1 1 1 . 1 . . . . . . 16 . . 1 5 Behemoth 2 | . . . . . . . . . . . . . . . . . . . . . . . . . . . . . . . . 2 Assembled 2 | . . 2 . . . . . . . . . . . . . . . . . . . . . . . . . . . . . . Best Kill Streak 6 | . 4 1 . 5 4 . 3 3 2 . 4 1 4 5 4 4 4 2 2 . 4 1 . . 4 . 1 6 3 . 2 3 Combat Bots Only 6 | . 4 1 . 3 3 . 3 2 2 . 4 . 4 5 4 2 4 2 2 . 4 . . . 4 . 1 6 3 . 2 3 Max Kills in Single Turn 2 | . 1 1 . 2 1 . 1 2 1 . 1 1 1 1 2 2 1 1 1 . 2 1 . . 2 . 1 2 1 . 1 1 Gunslinging 1 | . . . . 1 . . . 1 . . . . . . . . . . . . . . . . . . . . . . . . Exploded 2 | . 1 . . . . . . . . . . . 1 . 1 . . . 1 . . . . . 2 . . 1 . . . 1 Melee 1 | . . . . . . . . . . . . . 1 . . . 1 . 1 . . . . . . . . 1 1 . 1 . Uniques/NPCs Destroyed . | . . . . . . . . . . . . . . . . . . . . . . . . . . . . . . . . . Combat | -11 -10 -10 -10 -9 -8 -7 -7 -7 -7 -6 -6 -5 -5 -5 -5 -4 -4 -4 -4 -3 -3 -3 -3 -2 -2 -2 -2 -2 -2 -2 -2 -1 -------- Run | Scr Mat Min Exi Min Mat Fac Gar Fac Gar Fac Gar Fac Gar Fac Gar Fac Gar Fac Gar Res Gar Res Gar Res Gar Res Gar Res Gar Res Gar Acc Damage Taken 21560 | . 430 79 . 233 1115 . 766 549 125 . 1223 . 1212 359 1306 1062 485 1074 688 403 249 . 285 84 1911 . 575 3031 477 24 1572 2243 Core 1819 | . 72 15 . 26 210 . 98 33 15 . 97 . 131 . 74 39 25 15 60 . 76 . 13 . 157 . 45 248 25 . 175 170 Absorbed by Shields 250 | . . . . . . . . . . . . . 83 . 20 . . . . . . . . . . . 98 . 49 . . . Reduced by Siege Mode 313 | . . . . . . . . . . . . . . . 194 43 . . 22 . . . . . . . . 54 . . . . Redirected to Shielding 92 | . . . . . 92 . . . . . . . . . . . . . . . . . . . . . . . . . . . Regen/Repaired (Parts) 5643 | . . . . . . . . 113 . . . . . 539 . 834 219 497 476 316 72 33 95 . 1190 . 75 709 . . . 475 Core Remaining (%) 78 | 100 . . . 54 61 . . . 79 . 88 . . . 79 . . . 87 . . . 93 . . . . . . . 55 89 Volleys Fired 1200 | . 38 5 . 19 100 . 40 30 20 3 77 6 97 21 80 53 43 20 33 10 52 5 20 4 47 . 30 139 44 3 44 117 Largest 3 | . 2 2 . 2 3 . 3 3 2 1 2 1 1 1 2 1 1 1 1 1 1 1 1 1 1 . 1 2 1 1 1 2 Hottest 195 | . 85 46 . 46 123 . 150 150 88 5 88 60 69 120 180 120 120 7 120 7 120 7 83 83 83 . 60 180 60 10 75 195 Shots Fired 1695 | . 75 10 . 38 233 . 120 65 27 3 96 6 125 45 81 59 64 83 36 10 53 5 20 4 47 . 30 140 50 3 46 121 Gun 704 | . 75 10 . 38 203 . 120 52 5 . 15 . 69 24 . 6 21 63 3 . . . . . . . . . . . . . Cannon 561 | . . . . . 30 . . 8 11 . 64 3 30 7 44 33 11 . 12 . 16 . 5 1 5 . 14 116 22 . 35 94 Launcher 15 | . . . . . . . . . . . . . . . . . . . . . . . . . 4 . . 6 . . . 5 Special 415 | . . . . . . . . 5 11 3 17 3 26 14 37 20 32 20 21 10 37 5 15 3 38 . 16 18 28 3 11 22 Kinetic 961 | . 38 10 . 38 175 . 40 30 16 . 79 3 58 27 39 38 21 63 6 . 15 . 5 1 5 . 14 115 22 . 35 68 Thermal 282 | . 15 . . . 58 . 80 30 . . . . 41 4 5 1 11 . 9 . 1 . . . . . . 1 . . . 26 Explosive 5 | . . . . . . . . . . . . . . . . . . . . . . . . . . . . . . . . 5 Electromagnetic 32 | . 22 . . . . . . . . . . . . . . . . . . . . . . . 4 . . 6 . . . . Robot Hit Streak 41 | . 12 3 . 6 17 . 26 14 6 5 25 9 41 14 26 11 8 14 11 3 14 14 23 6 11 . 16 26 16 2 5 20 Robot Miss Streak 7 | . 4 2 . 3 3 . 1 2 3 . 5 1 3 3 5 4 2 4 2 1 4 . 1 . 3 . 2 6 5 5 7 3 Penetration Max 1 | . . . . . . . . . . . . . . . . . . . . . 1 . . . . . . . . . . . Secondary Targets 8 | . . . . 2 1 . 4 1 . . . . . . . . . . . . . . . . . . . . . . . . Max Gunslinging Chain 1 | . . . . 1 1 . 1 1 . . . . . . . . . . . . . . . . . . . . . . . . Autonomous 149 | . . . . . . . . . . . . . 29 24 . 6 21 65 4 . . . . . . . . . . . . . Shots Hit Robots 1256 | . 52 5 . 24 154 . 97 46 21 3 72 5 119 43 57 51 43 60 19 6 41 6 12 4 32 1 24 116 42 2 25 74 Core Hits 462 | . 19 3 . 10 51 . 35 20 4 . 40 2 49 22 21 25 13 18 1 . 6 . . . 8 . 5 50 13 . 20 27 Critical Kills 5 | . . . . . 1 . . . . . . . 1 1 . . . . . . . . . . . . . . . . . 2 Critical Parts Destroyed 4 | . . . . . 1 . 1 1 . . . . 1 . . . . . . . . . . . . . . . . . . . Critical Strikes 55 | . 2 . . . 5 . 6 5 1 . 9 . 6 1 3 . 1 . . . 1 . . . . . . 10 1 . . 4 Burn 14 | . 2 . . . 3 . 5 3 . . . . 1 . . . . . . . . . . . . . . . . . . . Meltdown 3 | . . . . . 1 . . . . . . . . . . . . . . . . . . . . . . . . . . 2 Destroy 5 | . . . . . 1 . 1 1 . . . . 1 1 . . . . . . . . . . . . . . . . . . Blast 25 | . . . . . . . . 1 1 . 9 . 3 . 3 . . . . . . . . . . . . 6 . . . 2 Smash 1 | . . . . . . . . . . . . . 1 . . . . . . . . . . . . . . . . . . . Impale 7 | . . . . . . . . . . . . . . . . . 1 . . . 1 . . . . . . 4 1 . . . Melee Attacks 449 | . . . . . . . 15 6 13 1 22 . 24 26 11 8 23 5 30 1 22 1 24 . 39 1 28 62 21 . 38 28 Impact 78 | . . . . . . . 15 6 13 1 22 . 21 . . . . . . . . . . . . . . . . . . . Slashing 27 | . . . . . . . . . . . . . . . . . . . . . . . . . . . . . . . . 27 Piercing 344 | . . . . . . . . . . . . . 3 26 11 8 23 5 30 1 22 1 24 . 39 1 28 62 21 . 38 1 Sneak Attacks 45 | . . . . . . . . . . . . . 4 6 . 2 5 . 2 . 1 1 . . 1 1 . 15 3 . . 4 Combat Hostiles 13 | . . . . . . . . . . . . . 3 . . . 5 . 1 . . . . . 1 . . . 3 . . . Follow-up Attacks . | . . . . . . . . . . . . . . . . . . . . . . . . . . . . . . . . . Damage Inflicted 37244 | . 880 70 . 401 2366 . 1848 901 571 . 3184 124 3998 1449 1626 2199 904 1595 307 . 1007 108 20 97 807 75 793 6402 1092 . 578 3842 Guns 10673 | . 720 70 . 401 2116 . 1848 751 71 . 263 . 1458 720 . 111 528 1547 69 . . . . . . . . . . . . . Cannons 20093 | . . . . . 250 . . 150 500 . 2847 124 1985 192 1626 1958 . . 90 . 953 . . 80 238 . 777 4591 780 . 345 2607 Explosions 1761 | . 160 . . . . . . . . . . . . . . . . . . . . . . . 453 . . 391 . . . 757 Melee 4513 | . . . . . . . . . . . 74 . 555 537 . 130 376 48 148 . 54 108 . . 116 75 . 1278 312 . 233 469 Ramming 204 | . . . . . . . . . . . . . . . . . . . . . . . 20 17 . . 16 142 . . . 9 Kinetic 26700 | . 305 70 . 401 1790 . 558 442 571 . 3110 124 2674 912 1626 2069 528 1547 159 . 953 . . 80 238 . 777 4591 780 . 345 2050 Thermal 4013 | . 328 . . . 576 . 1290 459 . . . . 769 . . . . . . . . . . . . . . 34 . . . 557 Explosive 757 | . . . . . . . . . . . . . . . . . . . . . . . . . . . . . . . . 757 Electromagnetic 1057 | . 247 . . . . . . . . . . . . . . . . . . . . . . . 453 . . 357 . . . . Impact 629 | . . . . . . . . . . . 74 . 555 . . . . . . . . . . . . . . . . . . . Slashing 469 | . . . . . . . . . . . . . . . . . . . . . . . . . . . . . . . . 469 Piercing 3415 | . . . . . . . . . . . . . . 537 . 130 376 48 148 . 54 108 . . 116 75 . 1278 312 . 233 . Highest Corruption 22 | . . . . . 1 . 4 4 5 . 3 . . . . 3 3 3 3 2 3 3 7 . . . . 14 14 14 22 7 Average Corruption 6 | . . . . . 1 . 3 4 4 . 2 . . . . 2 3 3 3 2 2 3 3 . . . . 6 14 14 18 6 Corruption Purged . | . . . . . . . . . . . . . . . . . . . . . . . . . . . . . . . . . Corruption Blocked . | . . . . . . . . . . . . . . . . . . . . . . . . . . . . . . . . . Effects 576 | . . . . . 8 . 4 27 23 . 38 . . . . 11 28 24 34 5 22 2 27 . . . . 52 72 18 113 68 Message Errors 129 | . . . . . 2 . 2 8 2 . 8 . . . . 4 6 3 12 . 5 1 7 . . . . 10 15 3 28 13 Matter Fused 163 | . . . . . 1 . 2 3 7 . 9 . . . . 5 10 7 9 2 5 . 9 . . . . 13 24 6 36 15 Heat Flow Errors 67 | . . . . . . . . 1 4 . 9 . . . . . 1 3 3 1 2 . 7 . . . . 3 7 2 14 10 Energy Discharges 73 | . . . . . 2 . . . 3 . 3 . . . . 2 4 5 4 . 3 1 1 . . . . 8 9 2 17 9 Parts Rejected 7 | . . . . . . . . 2 . . . . . . . . 1 1 . . . . . . . . . 2 . . . 1 Data Loss (minor) 65 | . . . . . 1 . . 6 5 . 3 . . . . . 1 2 5 2 4 . 2 . . . . 8 7 . 7 12 Data Loss (major) 31 | . . . . . 1 . . 2 . . 1 . . . . . 3 2 1 . 1 . 1 . . . . 6 2 3 5 3 Misfires 23 | . . . . . . . . 4 2 . 4 . . . . . . . . . 1 . . . . . . . 6 . 3 3 Alerts 12 | . . . . . . . . . . . 1 . . . . . 2 1 . . 1 . . . . . . 2 1 1 1 2 Misdirections 3 | . . . . . . . . . . . . . . . . . . . . . . . . . . . . . 1 1 1 . Weapon Failures 3 | . . . . . 1 . . 1 . . . . . . . . . . . . . . . . . . . . . . 1 . Overload Shots . | . . . . . . . . . . . . . . . . . . . . . . . . . . . . . . . . . Overflow Damage 1876 | . . . . . . . . . 44 . 75 . 227 62 . 50 34 . 69 . 139 68 . 1 . 45 16 681 10 . . 355 Projectiles 745 | . . . . . . . . . 44 . 75 . 79 19 . 50 . . 69 . 139 . . 1 . . 16 152 10 . . 91 Explosions 6 | . . . . . . . . . . . . . . . . . . . . . . . . . . . . 6 . . . . Melee 1125 | . . . . . . . . . . . . . 148 43 . . 34 . . . . 68 . . . 45 . 523 . . . 264 Knockbacks 140 | . . . . . . . . . . . 37 . 12 2 5 10 . . . . 3 . . . . . 7 45 7 . 7 5 Impact 3 | . . . . . . . . . . . . . 2 . . . . . . . . . . . . . . 1 . . . . Kinetic 123 | . . . . . . . . . . . 32 . 10 2 5 10 . . . . 3 . . . . . 7 37 6 . 6 5 Secondary 14 | . . . . . . . . . . . 5 . . . . . . . . . . . . . . . . 7 1 . 1 . Self-Inflicted Damage 338 | . . . . . . . . . . . . . . . . . . . . . . . 20 . 113 . . 205 . . . . Shots 10 | . . . . . . . . . . . . . . . . . . . . . . . . . 4 . . 6 . . . . Rammed 11 | . . . . . . . . . . . . . . . . . . . . . . . . 1 . . 2 5 . . . 3 Targets Rammed 12 | . . . . . . . . . . . . . . . . . . . . . . . . 1 . . 2 6 . . . 3 Kicked . | . . . . . . . . . . . . . . . . . . . . . . . . . . . . . . . . . Crushed 1 | . . . . . . . . . . . . . . . . . . . . . . . . . . . . 1 . . . . Highest Temperature 386 | . 180 . . . 334 . 48 274 273 . 304 6 338 132 222 304 386 288 328 220 232 . 254 251 43 . 108 256 274 214 267 320 Average Temperature 45 | . 47 . . . 77 . 14 39 60 . 70 3 141 42 60 57 22 21 24 118 65 . 95 102 16 . 45 34 64 92 77 77 Received Heat Transfer 3072 | . 132 . . . 621 . 162 42 12 . 285 . 306 54 315 91 118 214 30 18 48 . 54 18 174 . 63 72 54 . 99 90 Effects 20 | . . . . . 7 . . . . . . . 2 . . 1 4 . 3 . . . 1 . . . . . . . . 2 Shutdowns 4 | . . . . . . . . . . . . . 1 . . . 3 . . . . . . . . . . . . . . . Energy Bleed 4 | . . . . . 1 . . . . . . . 1 . . 1 . . 1 . . . . . . . . . . . . . Interference 11 | . . . . . 6 . . . . . . . . . . . . . 2 . . . 1 . . . . . . . . 2 Matter Decay 1 | . . . . . . . . . . . . . . . . . 1 . . . . . . . . . . . . . . . Siege Activations 19 | . . . . . . . . . . . . . . . 5 3 . . 1 . 1 . . . . . . 3 . . . 6 Total Turns 328 | . . . . . . . . . . . . . . . 152 41 . . 14 . 20 . . . . . . 40 . . . 61 Longest Duration 61 | . . . . . . . . . . . . . . . 61 21 . . 14 . 20 . . . . . . 24 . . . 24 Robots Corrupted 2 | . . . . . . . . . . . . . . . . . . . . . . . . . 1 . . 1 . . . . Combat Hostiles 2 | . . . . . . . . . . . . . . . . . . . . . . . . . 1 . . 1 . . . . Parts Fried 9 | . . . . . . . . . . . 2 . 2 . . . . . . . . . . . 3 . . 2 . . . . Impact Corruptions 7 | . . . . . . . . . . . 1 . 4 . . . . . . . . . . . . . . 2 . . . . Robots Melted 3 | . . . . . 1 . . . . . . . . . . . . . . . . . . . . . . . . . . 2 Combat Hostiles 3 | . . . . . 1 . . . . . . . . . . . . . . . . . . . . . . . . . . 2 Parts Melted 16 | . 1 . . . 2 . 6 6 . . . . . . . . . . . . . . . . . . . . . . . 1 Heat Transferred 8109 | . 755 . . . 1258 . 2960 1147 . . . . 1591 . . . . . . . . . . . . . . 50 . . . 348 Parts Sabotaged 1 | . . . . . . . . . . . 1 . . . . . . . . . . . . . . . . . . . . . Parts Stolen . | . . . . . . . . . . . . . . . . . . . . . . . . . . . . . . . . . Parts Stripped . | . . . . . . . . . . . . . . . . . . . . . . . . . . . . . . . . . Power Chain Reactions 4 | . 3 . . . . . . . . . . . . . . . . . . . . . . . . . . 1 . . . . Missiles Intercepted 2 | . . . . . . . . . . . . . . . . . . . . . . . . 1 1 . . . . . . . Alert | -11 -10 -10 -10 -9 -8 -7 -7 -7 -7 -6 -6 -5 -5 -5 -5 -4 -4 -4 -4 -3 -3 -3 -3 -2 -2 -2 -2 -2 -2 -2 -2 -1 ------- Run | Scr Mat Min Exi Min Mat Fac Gar Fac Gar Fac Gar Fac Gar Fac Gar Fac Gar Fac Gar Res Gar Res Gar Res Gar Res Gar Res Gar Res Gar Acc Peak Influence 1183 | . 284 . . 170 213 107 1072 665 802 421 1026 550 946 545 1183 674 480 252 1133 648 941 657 694 364 567 336 416 252 193 116 313 290 Initial 636 | . . . . . . 93 83 562 186 420 17 538 16 496 275 620 161 252 96 636 433 528 492 364 190 318 252 234 75 108 . 187 Average 294 | . 135 . . 54 87 95 482 398 534 256 555 200 387 376 657 375 290 86 632 604 688 557 505 231 336 333 158 42 76 88 96 73 Maximum Alert Level 4 | . 1 . . . 1 . 3 2 3 2 3 2 3 2 4 2 2 1 4 2 3 2 2 1 2 1 2 1 . . 1 1 Low Security (%) 47 | 100 69 100 . 100 91 100 20 . 2 48 7 71 38 . . 20 26 80 7 . . . . 11 16 . 55 98 100 100 88 92 Level 1 20 | . 30 . . . 8 . 17 56 31 1 30 . 16 74 23 25 42 19 15 . . . . 88 48 100 40 1 . . 11 7 Level 2 21 | . . . . . . . 39 43 34 49 27 27 26 25 29 53 30 . 30 100 54 100 100 . 35 . 3 . . . . . Level 3 9 | . . . . . . . 23 . 31 . 34 . 19 . 40 . . . 44 . 45 . . . . . . . . . . . Level 4 . | . . . . . . . . . . . . . . . 6 . . . 1 . . . . . . . . . . . . . Level 5 . | . . . . . . . . . . . . . . . . . . . . . . . . . . . . . . . . . High Security . | . . . . . . . . . . . . . . . . . . . . . . . . . . . . . . . . . Max Security . | . . . . . . . . . . . . . . . . . . . . . . . . . . . . . . . . . Squads Dispatched 79 | . 2 . . . 4 . . 5 . . . 2 . 5 . 6 . 8 . 1 . 3 . 3 . . . 20 . 1 . 19 Investigation 12 | . . . . . 1 . . 1 . . . 1 . 1 . 1 . . . . . . . . . . . 1 . . . 6 Extermination 28 | . . . . . . . . 2 . . . . . 2 . 4 . 2 . . . 1 . . . . . 10 . . . 7 Reinforcement 32 | . 2 . . . 3 . . 2 . . . 1 . 2 . 1 . 6 . . . . . 1 . . . 8 . 1 . 5 Assault 2 | . . . . . . . . . . . . . . . . . . . . . . 1 . . . . . . . . . 1 Garrison 5 | . . . . . . . . . . . . . . . . . . . . 1 . 1 . 2 . . . 1 . . . . Intercept . | . . . . . . . . . . . . . . . . . . . . . . . . . . . . . . . . . Searches Triggered . | . . . . . . . . . . . . . . . . . . . . . . . . . . . . . . . . . Construction Impeded 3 | . . . . . . . . 1 . . . . . . . . . . . . . . . . . . . 1 . . . 1 Haulers Reinforced 6 | . . . . . . . . . . . . . . 1 . . . 2 . . . . . . . . . 1 . . . 2 Active Scanning Responses . | . . . . . . . . . . . . . . . . . . . . . . . . . . . . . . . . . Cargo Convoy Interrupts 1 | . . . . . . . . 1 . . . . . . . . . . . . . . . . . . . . . . . . Alert ID Control Effect 297 | . . . . . . . . . . . . . . . . 9 4 28 12 6 6 3 20 3 18 2 22 33 20 8 21 82 Stealth | -11 -10 -10 -10 -9 -8 -7 -7 -7 -7 -6 -6 -5 -5 -5 -5 -4 -4 -4 -4 -3 -3 -3 -3 -2 -2 -2 -2 -2 -2 -2 -2 -1 --------- Run | Scr Mat Min Exi Min Mat Fac Gar Fac Gar Fac Gar Fac Gar Fac Gar Fac Gar Fac Gar Res Gar Res Gar Res Gar Res Gar Res Gar Res Gar Acc Distress Signals 16 | . 1 1 . . 3 . . 1 . . . . . 2 . . . 1 . . . . . . . . . 1 . . 1 5 Communications Jammed 499 | . . . . . . . . . . . . . . . . 2 . 248 . 2 49 1 . . . . . 77 . 1 . 119 Distress Signals 495 | . . . . . . . . . . . . . . . . 2 . 248 . . 49 . . . . . . 77 . . . 119 Times Spotted 767 | . 23 3 . 6 42 . 14 27 28 1 37 2 39 21 32 32 26 47 29 8 20 8 17 4 35 1 27 91 25 5 37 80 Peak Tracking Total 10 | . 5 2 . 3 5 . 3 9 5 1 4 1 6 4 4 6 4 6 7 3 2 3 3 2 10 1 5 6 3 2 5 5 Tactical Retreats 24 | . 3 1 . . 5 . . . 1 . 4 . 2 1 . . 1 . . . . . . . 2 . . 2 . . . 2 Traps | -11 -10 -10 -10 -9 -8 -7 -7 -7 -7 -6 -6 -5 -5 -5 -5 -4 -4 -4 -4 -3 -3 -3 -3 -2 -2 -2 -2 -2 -2 -2 -2 -1 ------- Run | Scr Mat Min Exi Min Mat Fac Gar Fac Gar Fac Gar Fac Gar Fac Gar Fac Gar Fac Gar Res Gar Res Gar Res Gar Res Gar Res Gar Res Gar Acc Traps Triggered 54 | . 6 . . . 1 . 2 1 4 . 7 . 8 3 2 3 . 2 5 . . . 2 . 2 . 1 . 2 . 1 2 Indirectly . | . . . . . . . . . . . . . . . . . . . . . . . . . . . . . . . . . Trap Hack Attempts . | . . . . . . . . . . . . . . . . . . . . . . . . . . . . . . . . . Triggered . | . . . . . . . . . . . . . . . . . . . . . . . . . . . . . . . . . Disarmed 6 | . . . . . 6 . . . . . . . . . . . . . . . . . . . . . . . . . . . Reprogrammed 1 | . . . . . 1 . . . . . . . . . . . . . . . . . . . . . . . . . . . Reused . | . . . . . . . . . . . . . . . . . . . . . . . . . . . . . . . . . Traps Extracted . | . . . . . . . . . . . . . . . . . . . . . . . . . . . . . . . . . Installed . | . . . . . . . . . . . . . . . . . . . . . . . . . . . . . . . . . Triggered . | . . . . . . . . . . . . . . . . . . . . . . . . . . . . . . . . . Exploded 2 | . . . . . 2 . . . . . . . . . . . . . . . . . . . . . . . . . . . Machines | -11 -10 -10 -10 -9 -8 -7 -7 -7 -7 -6 -6 -5 -5 -5 -5 -4 -4 -4 -4 -3 -3 -3 -3 -2 -2 -2 -2 -2 -2 -2 -2 -1 ---------- Run | Scr Mat Min Exi Min Mat Fac Gar Fac Gar Fac Gar Fac Gar Fac Gar Fac Gar Fac Gar Res Gar Res Gar Res Gar Res Gar Res Gar Res Gar Acc Machines Disabled 102 | . 1 . . . 2 . 3 . 3 . 8 . 6 . 10 6 6 4 6 . 7 . 8 . 5 . 9 1 6 . 5 6 Max in Single Turn 2 | . 1 . . . 1 . 1 . 1 . 1 . 1 . 1 2 1 . 1 . 1 . 1 . 1 . 1 1 1 . 1 1 Garrison Access 6 | . . . . . . . . . . . . . . . . . . . . . . . . . . . . 2 . . . 4 Garrison Relay 58 | . . . . . . . 3 . 2 . 3 . 5 . 5 . 5 . 6 . 4 . 8 . 5 . 3 . 5 . 4 . Phase Generator 1 | . . . . . . . . . . . . . . . 1 . . . . . . . . . . . . . . . . . Machines Sabotaged . | . . . . . . . . . . . . . . . . . . . . . . . . . . . . . . . . . Garrisons Compromised . | . . . . . . . . . . . . . . . . . . . . . . . . . . . . . . . . . Overloaded Fab Kills . | . . . . . . . . . . . . . . . . . . . . . . . . . . . . . . . . . Hacking | -11 -10 -10 -10 -9 -8 -7 -7 -7 -7 -6 -6 -5 -5 -5 -5 -4 -4 -4 -4 -3 -3 -3 -3 -2 -2 -2 -2 -2 -2 -2 -2 -1 --------- Run | Scr Mat Min Exi Min Mat Fac Gar Fac Gar Fac Gar Fac Gar Fac Gar Fac Gar Fac Gar Res Gar Res Gar Res Gar Res Gar Res Gar Res Gar Acc Machines Accessed 106 | . 4 1 3 . 7 2 2 9 2 2 2 3 2 6 2 7 2 3 3 1 2 3 1 1 3 3 3 6 1 3 3 14 Terminals 76 | . 4 . . . 7 1 2 7 2 1 2 2 2 3 2 5 2 1 3 . 2 2 1 . 3 2 3 2 1 1 3 10 Fabricators 1 | . . . . . . . . . . . . . . 1 . . . . . . . . . . . . . . . . . . Repair Stations 6 | . . . . . . . . 1 . . . . . 1 . 1 . 1 . . . . . . . . . 1 . 1 . . Recycling Units . | . . . . . . . . . . . . . . . . . . . . . . . . . . . . . . . . . Scanalyzers . | . . . . . . . . . . . . . . . . . . . . . . . . . . . . . . . . . Garrison Access 19 | . . . . . . 1 . 1 . 1 . 1 . 1 . 1 . 1 . 1 . 1 . 1 . 1 . 3 . 1 . 4 Total Hacks 245 | . 12 1 14 . 24 4 3 24 4 5 5 5 4 11 4 25 7 10 4 1 4 3 3 1 7 6 3 12 2 4 4 29 Successful 126 | . 6 1 14 . 10 2 2 9 3 3 2 3 2 8 1 14 1 5 2 1 1 1 . 1 2 3 2 7 2 3 1 14 Failed 118 | . 5 . . . 14 2 1 15 1 2 3 2 2 3 3 11 6 5 2 . 3 2 3 . 5 3 1 5 . 1 3 15 Catastrophic 31 | . 1 . . . 2 2 1 4 . . . 1 1 3 . 1 . . 1 . 1 1 . . . 1 1 1 . . 3 6 Database Lockouts 1 | . 1 . . . . . . . . . . . . . . . . . . . . . . . . . . . . . . . Manual 71 | . 9 . 1 . 8 2 . 8 2 . . 3 . 4 . 10 . 7 . . 1 2 . . . . . 5 1 1 . 7 Terminals 176 | . 12 . . . 24 3 3 15 4 4 5 3 4 4 4 17 7 7 4 . 4 2 3 . 7 5 3 4 2 2 4 20 Fabricators 1 | . . . . . . . . . . . . . . 1 . . . . . . . . . . . . . . . . . . Repair Stations 26 | . . . . . . . . 8 . . . . . 5 . 7 . 2 . . . . . . . . . 3 . 1 . . Recycling Units . | . . . . . . . . . . . . . . . . . . . . . . . . . . . . . . . . . Scanalyzers . | . . . . . . . . . . . . . . . . . . . . . . . . . . . . . . . . . Garrison Access 27 | . . . . . . 1 . 1 . 1 . 2 . 1 . 1 . 1 . 1 . 1 . 1 . 1 . 5 . 1 . 9 Terminal Hacks 70 | . 5 1 14 . 9 . 2 3 2 2 2 1 2 1 1 4 1 3 2 . 1 . . . 2 2 2 1 1 1 1 4 Record 15 | . . . 13 . . . . . . 1 . . . . . 1 . . . . . . . . . . . . . . . . Robot Analysis 3 | . 2 . . . . . . 1 . . . . . . . . . . . . . . . . . . . . . . . . Prototype ID Bank 4 | . . . . . 1 . . . . . . . . . . 2 . . . . . . . . . 1 . . . . . . Open Door 5 | . . 1 . . . . 1 . . . 1 . . . 1 . . . . . . . . . . . . . . . . 1 Emergency Access Points 12 | . . . . . . . 1 1 1 . 1 . 1 . . . 1 . 1 . 1 . . . 1 . 1 . 1 . 1 . Terminal Index 1 | . . . . . . . . . . . . . . . . . . . . . . . . . . . . 1 . . . . Garrison Index 2 | . . . . . . . . . . . . . . . . . . . . . . . . . . 1 . . . . . 1 Alert Level 1 | . . . . . 1 . . . . . . . . . . . . . . . . . . . . . . . . . . . Unreport Threat 5 | . . . . . . . . 1 . 1 . 1 . . . 1 . 1 . . . . . . . . . . . . . . Locate Traps 3 | . 1 . . . . . . . . . . . . 1 . . . 1 . . . . . . . . . . . . . . Disarm Traps 1 | . . . . . 1 . . . . . . . . . . . . . . . . . . . . . . . . . . . Reprogram Traps 1 | . . . . . 1 . . . . . . . . . . . . . . . . . . . . . . . . . . . Maintenance Status 1 | . . . . . . . . . . . . . . . . . . 1 . . . . . . . . . . . . . . Hauler Manifests 1 | . 1 . . . . . . . . . . . . . . . . . . . . . . . . . . . . . . . Registered Components 1 | . 1 . . . . . . . . . . . . . . . . . . . . . . . . . . . . . . . Zone Layout 8 | . . . . . 5 . . . . . . . . . . . . . . . . . . . . . . . . 1 . 2 Garrison Registry 1 | . . . . . . . . . 1 . . . . . . . . . . . . . . . . . . . . . . . Patrol Navigation 3 | . . . . . . . . . . . . . 1 . . . . . 1 . . . . . 1 . . . . . . . Security Stations 1 | . . . . . . . . . . . . . . . . . . . . . . . . . . . 1 . . . . . EX-Prototype ID Bank 1 | . . . 1 . . . . . . . . . . . . . . . . . . . . . . . . . . . . . Fabricator Hacks 1 | . . . . . . . . . . . . . . 1 . . . . . . . . . . . . . . . . . . Network Status 1 | . . . . . . . . . . . . . . 1 . . . . . . . . . . . . . . . . . . Repair Station Hacks 11 | . . . . . . . . 3 . . . . . 4 . 4 . . . . . . . . . . . . . . . . Scan Component 6 | . . . . . . . . 2 . . . . . 2 . 2 . . . . . . . . . . . . . . . . Repair 5 | . . . . . . . . 1 . . . . . 2 . 2 . . . . . . . . . . . . . . . . Recycling Unit Hacks . | . . . . . . . . . . . . . . . . . . . . . . . . . . . . . . . . . Scanalyzer . | . . . . . . . . . . . . . . . . . . . . . . . . . . . . . . . . . Garrison Access Hacks 24 | . . . . . . 1 . 1 . 1 . 1 . 1 . 1 . 1 . 1 . 1 . 1 . 1 . 5 . 1 . 7 Unlock Access 13 | . . . . . . 1 . 1 . 1 . 1 . 1 . 1 . 1 . 1 . 1 . 1 . 1 . 1 . 1 . . Seal Access 5 | . . . . . . . . . . . . . . . . . . . . . . . . . . . . 2 . . . 3 Coupler Status 6 | . . . . . . . . . . . . . . . . . . . . . . . . . . . . 2 . . . 4 Unauthorized Hacks 20 | . 1 . . . 1 1 . 2 1 . . 1 . 1 . 5 . 1 . . . . . . . . . 1 1 1 . 3 Terminals 16 | . 1 . . . 1 1 . 2 1 . . . . . . 5 . 1 . . . . . . . . . . 1 . . 3 Assimilate 1 | . . . . . . . . . . . . . . . . 1 . . . . . . . . . . . . . . . . Botnet 14 | . 1 . . . 1 1 . 2 1 . . . . . . 3 . 1 . . . . . . . . . . 1 . . 3 Operators 1 | . . . . . . . . . . . . . . . . 1 . . . . . . . . . . . . . . . . Fabricators . | . . . . . . . . . . . . . . . . . . . . . . . . . . . . . . . . . Repair Stations 3 | . . . . . . . . . . . . . . 1 . . . . . . . . . . . . . 1 . 1 . . Mechanics 3 | . . . . . . . . . . . . . . 1 . . . . . . . . . . . . . 1 . 1 . . Recycling Units . | . . . . . . . . . . . . . . . . . . . . . . . . . . . . . . . . . Scanalyzers . | . . . . . . . . . . . . . . . . . . . . . . . . . . . . . . . . . Garrison Access 1 | . . . . . . . . . . . . 1 . . . . . . . . . . . . . . . . . . . . Eject 1 | . . . . . . . . . . . . 1 . . . . . . . . . . . . . . . . . . . . Data Cores Recovered . | . . . . . . . . . . . . . . . . . . . . . . . . . . . . . . . . . Used . | . . . . . . . . . . . . . . . . . . . . . . . . . . . . . . . . . Hacking Detections 87 | . 4 . . . 7 2 2 8 1 1 1 3 2 5 1 6 2 2 3 . 2 3 1 . 3 2 3 5 1 2 3 12 Full Trace Events 19 | . . . . . 1 . 1 1 . . 1 . 1 1 1 1 1 . . . 1 . 1 . . . . 1 . . 1 6 Feedback Events 4 | . . . . . 1 . . . . . . . . . . . . . . . . . 1 . . . . . . . . 2 Corruption 4 | . . . . . 1 . . . . . . . . . . . . . . . . . 1 . . . . . . . . 2 Feedback Blocked . | . . . . . . . . . . . . . . . . . . . . . . . . . . . . . . . . . Robot Schematics Acquired . | . . . . . . . . . . . . . . . . . . . . . . . . . . . . . . . . . Robots Built . | . . . . . . . . . . . . . . . . . . . . . . . . . . . . . . . . . Authchips . | . . . . . . . . . . . . . . . . . . . . . . . . . . . . . . . . . Time . | . . . . . . . . . . . . . . . . . . . . . . . . . . . . . . . . . Total Robot Build Rating . | . . . . . . . . . . . . . . . . . . . . . . . . . . . . . . . . . Part Schematics Acquired . | . . . . . . . . . . . . . . . . . . . . . . . . . . . . . . . . . Parts Built . | . . . . . . . . . . . . . . . . . . . . . . . . . . . . . . . . . Authchips . | . . . . . . . . . . . . . . . . . . . . . . . . . . . . . . . . . Time . | . . . . . . . . . . . . . . . . . . . . . . . . . . . . . . . . . Total Part Build Rating . | . . . . . . . . . . . . . . . . . . . . . . . . . . . . . . . . . Parts Repaired 5 | . . . . . . . . 1 . . . . . 2 . 2 . . . . . . . . . . . . . . . . Time 366 | . . . . . . . . 70 . . . . . 178 . 118 . . . . . . . . . . . . . . . . Parts Recycled . | . . . . . . . . . . . . . . . . . . . . . . . . . . . . . . . . . Recycled Matter . | . . . . . . . . . . . . . . . . . . . . . . . . . . . . . . . . . Retrieved Matter . | . . . . . . . . . . . . . . . . . . . . . . . . . . . . . . . . . Retrieved Components . | . . . . . . . . . . . . . . . . . . . . . . . . . . . . . . . . . Parts Scanalyzed . | . . . . . . . . . . . . . . . . . . . . . . . . . . . . . . . . . Part Schematics Acquired . | . . . . . . . . . . . . . . . . . . . . . . . . . . . . . . . . . Parts Damaged . | . . . . . . . . . . . . . . . . . . . . . . . . . . . . . . . . . Bothacking | -11 -10 -10 -10 -9 -8 -7 -7 -7 -7 -6 -6 -5 -5 -5 -5 -4 -4 -4 -4 -3 -3 -3 -3 -2 -2 -2 -2 -2 -2 -2 -2 -1 ------------ Run | Scr Mat Min Exi Min Mat Fac Gar Fac Gar Fac Gar Fac Gar Fac Gar Fac Gar Fac Gar Res Gar Res Gar Res Gar Res Gar Res Gar Res Gar Acc Used RIF Installer 15 | . . . . . . . 1 . 1 . 2 . 1 . 1 . 1 . 2 . 1 . 1 . 1 . 1 . 1 . 1 . Command Fork 1 | . . . . . . . . . . . . . 1 . . . . . . . . . . . . . . . . . . . Threat Obfuscator 3 | . . . . . . . . . . . 1 . . . . . . . . . . . . . 1 . . . 1 . . . Signal Jammer 1 | . . . . . . . . . . . 1 . . . . . . . . . . . . . . . . . . . . . Zone Cloak 1 | . . . . . . . . . . . . . . . . . . . . . . . . . . . . . . . 1 . Watcher Feeds 1 | . . . . . . . . . 1 . . . . . . . . . . . . . . . . . . . . . . . Alert ID Control 1 | . . . . . . . . . . . . . . . 1 . . . . . . . . . . . . . . . . . Program Shield 1 | . . . . . . . . . . . . . . . . . . . 1 . . . . . . . . . . . . . Autooverride 3 | . . . . . . . . . . . . . . . . . 1 . 1 . . . . . . . 1 . . . . . Autoassimilate 1 | . . . . . . . . . . . . . . . . . . . . . 1 . . . . . . . . . . . Crosswire 1 | . . . . . . . . . . . . . . . . . . . . . . . 1 . . . . . . . . . Robots Hacked 412 | . . . . . . . . 2 9 1 11 1 17 7 18 11 14 14 15 8 21 2 20 4 37 3 18 26 42 2 28 81 Non-combat 13 | . . . . . . . . 1 . 1 . 1 . . . 1 . 2 . . . . . 1 . . . 2 . 1 . 3 Combat 399 | . . . . . . . . 1 9 . 11 . 17 7 18 10 14 12 15 8 21 2 20 3 37 3 18 24 42 1 28 78 Autooverrided 141 | . . . . . . . . . . . . . . . . . . 6 6 4 4 . 4 2 14 1 9 9 24 1 14 43 Autoassimilated 99 | . . . . . . . . . . . . . . . . . . . . . 1 . 8 . 15 2 9 7 15 . 12 30 Robot Hacks Applied 196 | . . . . . . . . 2 9 3 11 3 17 7 18 12 16 11 11 5 17 2 8 3 9 . . 13 4 1 4 10 parse_system 2 | . . . . . . . . . . . . . . . . . 1 . . . 1 . . . . . . . . . . . purge_threat 8 | . . . . . . . . . . 2 . 3 . . . . . 1 . . . . . 1 . . . 1 . . . . emergency_deploy 1 | . . . . . . . . . . . . . . . . . . . . . . . . . . . . . . . . 1 scatter_targeting 3 | . . . . . . . . . . . . . 2 . . . 1 . . . . . . . . . . . . . . . overload_power 2 | . . . . . . . . . . . . . . . 2 . . . . . . . . . . . . . . . . . amplify_resonance 8 | . . . . . . . . . . . . . 2 1 . 1 . 1 2 . 1 . . . . . . . . . . . disable_weapons 3 | . . . . . . . . . . . 1 . . . 1 . . . . . 1 . . . . . . . . . . . reboot_system 3 | . . . . . . . . . . . . . . . . . 1 . . . . . . . . . . . . . . 2 overwrite_iff 46 | . . . . . . . . . 3 . 7 . 10 5 4 3 3 . . . 2 . 1 . 3 . . . 1 . 3 1 streamctrl_high 1 | . . . . . . . . . . . . . . . . . . . . . . . . . . . . 1 . . . . formatsys_low 8 | . . . . . . . . . . . . . . . . 1 1 1 . . . . . 1 . . . 2 . 1 . 1 formatsys_high 107 | . . . . . . . . 2 6 1 3 . 3 1 9 7 9 8 9 5 11 1 7 1 6 . . 9 3 . 1 5 formatsys_deep 4 | . . . . . . . . . . . . . . . 2 . . . . . 1 1 . . . . . . . . . . Relay Couplers Released 259 | . . . . . . . 16 . 8 . 14 3 19 . 21 . 20 . 22 . 17 . 35 . 23 . 14 1 25 . 16 5 Ejected 3 | . . . . . . . . . . . . 3 . . . . . . . . . . . . . . . . . . . . Machine Destruction 252 | . . . . . . . 12 . 8 . 14 . 19 . 21 . 20 . 22 . 17 . 35 . 23 . 14 1 25 . 16 5 Programmers 4 | . . . . . . . 4 . . . . . . . . . . . . . . . . . . . . . . . . . Attached 141 | . . . . . . . . 2 5 1 3 1 8 . 13 5 8 6 10 1 12 2 14 . 11 . 4 8 7 1 9 10 Crosswired 43 | . . . . . . . . . . . . . . . . . . . . . . . 12 . 9 . 4 . 11 . 7 . Fabnet Peak Effective % . | . . . . . . . . . . . . . . . . . . . . . . . . . . . . . . . . . Robots Rewired 33 | . . . . . . . . . . . . . 3 1 2 . . . . . 4 . . . 6 . 5 . 12 . . . Allies Hacked 14 | . . . . . . . . . . . . . 1 . . 2 3 2 1 . . 1 . . . . . 4 . . . . Hacks Repelled . | . . . . . . . . . . . . . . . . . . . . . . . . . . . . . . . . . Allies | -11 -10 -10 -10 -9 -8 -7 -7 -7 -7 -6 -6 -5 -5 -5 -5 -4 -4 -4 -4 -3 -3 -3 -3 -2 -2 -2 -2 -2 -2 -2 -2 -1 -------- Run | Scr Mat Min Exi Min Mat Fac Gar Fac Gar Fac Gar Fac Gar Fac Gar Fac Gar Fac Gar Res Gar Res Gar Res Gar Res Gar Res Gar Res Gar Acc Total Allies 465 | . . . . . . . 1 2 11 1 11 . 18 7 17 21 16 13 15 10 30 4 23 4 43 3 23 28 54 2 28 80 Largest Group 34 | . . . . . . . 1 1 6 1 3 3 5 2 5 11 8 13 15 16 24 24 25 20 30 33 34 26 17 14 12 9 Highest-Rated Group 1776 | . . . . . . . 31 110 236 26 110 110 146 73 166 363 372 720 792 780 1216 1252 1274 1012 1484 1574 1776 1260 968 905 772 970 Highest-Rated Ally 219 | . . . . . . . 31 110 88 26 46 46 68 49 49 58 58 137 137 64 95 85 95 95 148 69 116 178 178 89 178 219 Total Orders 437 | . . . . . . . . 5 7 . 4 4 11 1 32 26 39 23 42 7 34 6 19 8 24 . 35 52 15 2 17 24 STAY 199 | . . . . . . . . 2 3 . 1 2 6 1 19 14 17 8 22 2 16 2 9 3 12 . 17 20 6 1 7 9 ROAM 6 | . . . . . . . . . . . 1 . 1 . 1 . 1 1 1 . . . . . . . . . . . . . FOLLOW 178 | . . . . . . . . 3 4 . 2 2 4 . 12 10 14 8 14 2 16 1 7 4 9 . 14 21 9 1 10 11 AID 50 | . . . . . . . . . . . . . . . . 2 3 6 5 3 2 3 3 1 3 . 4 11 . . . 4 EXPLORE 4 | . . . . . . . . . . . . . . . . . 4 . . . . . . . . . . . . . . . Ally Attacks 2486 | . . . . . . . 4 12 61 . 32 . 86 27 47 91 48 164 92 48 68 46 142 47 162 17 168 312 176 47 184 405 Total Damage 81787 | . . . . . . . 77 164 2464 . 476 . 1868 629 1228 2493 976 5100 3601 1234 1953 1297 5076 1339 4382 299 6376 11241 4986 1478 4562 18488 Kills 444 | . . . . . . . . 2 17 . 5 . 9 5 9 9 4 39 23 9 9 8 24 7 26 2 25 63 21 8 24 96 Allies Corrupted 37 | . . . . . . . 1 . . . . . 1 . . 1 1 . . 7 . 1 . . . . 1 18 1 1 1 3 Allies Melted 8 | . . . . . . . . . . . . . . . . . . 1 . . . . 3 . . . . 1 3 . . . Intel | -11 -10 -10 -10 -9 -8 -7 -7 -7 -7 -6 -6 -5 -5 -5 -5 -4 -4 -4 -4 -3 -3 -3 -3 -2 -2 -2 -2 -2 -2 -2 -2 -1 ------- Run | Scr Mat Min Exi Min Mat Fac Gar Fac Gar Fac Gar Fac Gar Fac Gar Fac Gar Fac Gar Res Gar Res Gar Res Gar Res Gar Res Gar Res Gar Acc Robot Analysis Total 3 | . 2 . . . . . . 1 . . . . . . . . . . . . . . . . . . . . . . . . Derelict Logs Recovered . | . . . . . . . . . . . . . . . . . . . . . . . . . . . . . . . . . Drone Launches 17 | . . . . . . . . 3 . . . . . . . . 14 . . . . . . . . . . . . . . . Drone Recoveries 1 | . . . . . . . . . . . . . . . . . 1 . . . . . . . . . . . . . . . Exploration | -11 -10 -10 -10 -9 -8 -7 -7 -7 -7 -6 -6 -5 -5 -5 -5 -4 -4 -4 -4 -3 -3 -3 -3 -2 -2 -2 -2 -2 -2 -2 -2 -1 ------------- Run | Scr Mat Min Exi Min Mat Fac Gar Fac Gar Fac Gar Fac Gar Fac Gar Fac Gar Fac Gar Res Gar Res Gar Res Gar Res Gar Res Gar Res Gar Acc Turns Passed 46751 | 77 1238 309 869 436 2166 202 1342 1450 989 179 1840 437 2475 1561 2252 1487 1738 1228 2442 376 1736 353 1528 188 1863 281 2339 4109 1830 425 2392 4614 Spaces Moved 24335 | 43 639 157 367 313 1157 108 600 868 629 83 954 310 1404 730 1083 697 861 639 1259 211 873 199 795 98 940 159 1131 1941 803 249 1382 2653 Core 6 | 6 . . . . . . . . . . . . . . . . . . . . . . . . . . . . . . . . Treads 18325 | 37 639 157 357 . . . . . . . . . 432 730 1083 697 861 639 1259 211 873 199 795 98 940 159 1131 1941 803 249 1382 2653 Legs 1391 | . . . . . 747 108 536 . . . . . . . . . . . . . . . . . . . . . . . . . Wheels 4613 | . . . 10 313 410 . 64 868 629 83 954 310 972 . . . . . . . . . . . . . . . . . . . Hover . | . . . . . . . . . . . . . . . . . . . . . . . . . . . . . . . . . Flight . | . . . . . . . . . . . . . . . . . . . . . . . . . . . . . . . . . Fastest Speed 50 | 50 160 160 120 120 105 120 105 105 120 135 120 123 123 160 160 160 160 160 160 160 160 160 160 160 160 152 152 152 152 152 152 145 Average Speed 155 | 144 160 160 234 120 126 179 180 134 129 135 130 123 136 160 160 160 160 160 160 160 160 160 161 160 160 158 177 166 196 152 152 148 Slowest Speed 250 | 160 160 160 240 120 190 190 190 150 135 135 150 123 160 160 160 160 160 160 160 160 250 160 250 250 160 160 232 232 237 152 237 237 Overloaded Moves . | . . . . . . . . . . . . . . . . . . . . . . . . . . . . . . . . . Propulsion Burnouts . | . . . . . . . . . . . . . . . . . . . . . . . . . . . . . . . . . Robots Hopped . | . . . . . . . . . . . . . . . . . . . . . . . . . . . . . . . . . Cave-ins Triggered 1 | . . . . . . . . 1 . . . . . . . . . . . . . . . . . . . . . . . . Exploration Rate (%) 49 | 5 87 27 72 48 75 3 58 26 75 2 72 8 79 26 84 26 78 26 95 6 88 11 66 4 86 8 86 57 76 9 87 66 Regions Visited 32 Branch Regions 3 Pre-discovered Areas 1 | . . . 1 . . . . . . . . . . . . . . . . . . . . . . . . . . . . . Known Exits Taken 13 | . . . . . . 1 . 1 . 1 . 1 . 1 . 1 . 1 . 1 . 1 . 1 . 1 . 1 . 1 . . Unknown Exits Taken 6 | 1 1 1 1 1 1 . . . . . . . . . . . . . . . . . . . . . . . . . . . Scrap Searched . | . . . . . . . . . . . . . . . . . . . . . . . . . . . . . . . . . Spaces Dug 295 | . . . . . 17 . . 16 1 1 9 . 5 14 6 4 15 3 19 . 10 . 11 . 24 . 14 58 12 . 19 37 Terrain Destroyed 611 | . 10 . . . 20 . . 18 2 1 15 3 10 21 81 15 20 26 22 . 14 . 13 . 26 . 14 93 14 . 25 148 Melee 190 | . . . . . . . . 5 1 1 9 . 5 12 2 3 5 3 10 . 10 . 11 . 24 . 14 33 6 . 16 20 Projectile 257 | . . . . . 20 . . 13 1 . 6 3 5 9 8 12 15 23 12 . 4 . 2 . 2 . . 60 8 . 9 45 AOE 164 | . 10 . . . . . . . . . . . . . 71 . . . . . . . . . . . . . . . . 83 Terrain Rammed 1 | . . . . . . . . . . . . . . . . . . . . . . . 1 . . . . . . . . . Walls Destroyed . | . . . . . . . . . . . . . . . . . . . . . . . . . . . . . . . . . Machines Disabled 1 | . . . . . . . . . . . . . . . . . . . . . . . 1 . . . . . . . . . Actions | -11 -10 -10 -10 -9 -8 -7 -7 -7 -7 -6 -6 -5 -5 -5 -5 -4 -4 -4 -4 -3 -3 -3 -3 -2 -2 -2 -2 -2 -2 -2 -2 -1 --------- Run | Scr Mat Min Exi Min Mat Fac Gar Fac Gar Fac Gar Fac Gar Fac Gar Fac Gar Fac Gar Res Gar Res Gar Res Gar Res Gar Res Gar Res Gar Acc Total 31160 | 55 781 208 374 345 1713 116 746 1090 769 145 1424 361 1841 1057 1524 1010 1152 824 1611 245 1131 229 980 125 1196 185 1381 2541 998 296 1556 3151 Wait 3772 | . 49 40 . 5 361 . 44 115 47 54 294 33 184 233 296 216 169 133 216 16 126 18 89 15 119 14 163 280 66 39 53 285 Move 24311 | 42 638 156 366 312 1156 108 599 867 628 83 953 309 1403 730 1082 697 860 639 1258 211 872 199 794 97 939 159 1130 1941 802 248 1381 2652 Hop . | . . . . . . . . . . . . . . . . . . . . . . . . . . . . . . . . . Pick Up 248 | 5 16 2 5 3 22 2 15 10 15 . 10 3 18 7 11 1 10 . 18 . 14 1 13 . 10 1 4 6 13 1 8 4 Fast Attach 187 | 7 15 1 . . 16 1 1 16 . . 5 2 7 8 7 10 12 3 4 1 7 . 6 2 7 4 1 19 7 . 9 9 Attach 152 | . 4 . . 2 12 3 5 3 7 2 9 1 10 5 7 5 5 4 10 2 8 1 9 1 6 . . 8 3 . 5 15 Detach 129 | 1 2 . . 2 8 2 1 8 5 . 5 . 9 6 7 6 6 3 8 1 6 1 7 . 4 1 1 10 3 1 5 10 Swap 329 | . 3 . 3 . 15 . 11 15 15 2 19 2 18 13 13 9 11 13 17 . 11 3 8 1 13 1 16 52 17 2 7 19 Drop 227 | . 16 4 . 2 23 . 15 20 10 . 4 5 19 8 4 5 10 3 11 1 6 . 6 2 4 4 4 13 14 2 5 7 Fire 1200 | . 38 5 . 19 100 . 40 30 20 3 77 6 97 21 80 53 43 20 33 10 52 5 20 4 47 . 30 139 44 3 44 117 Melee 449 | . . . . . . . 15 6 13 1 22 . 24 26 11 8 23 5 30 1 22 1 24 . 39 1 28 62 21 . 38 28 Ram 1 | . . . . . . . . . . . . . . . . . . . . . . . 1 . . . . . . . . . Kick . | . . . . . . . . . . . . . . . . . . . . . . . . . . . . . . . . . Crush 12 | . . . . . . . . . . . . . . . . . . . . . . . . 1 . . 2 6 . . . 3 Escape Stasis 66 | . . . . . . . . . 8 . 24 . 25 . 1 . . . 2 . . . . . 2 . . . 4 . . . Rewire 77 | . . . . . . . . . 1 . 2 . 27 . 5 . 3 1 4 2 7 . 3 2 6 . 2 5 4 . 1 2 Trap . | . . . . . . . . . . . . . . . . . . . . . . . . . . . . . . . . . Miscellaneous . | . . . . . . . . . . . . . . . . . . . . . . . . . . . . . . . . . Route ------- -11/Scrapyard -10/Materials (discovered 4 exits: [*Mat x2] / *Min x2) -10/Mines (discovered 2 exits: [*Mat] / *Exi) -10/Exiles -9/Mines -8/Materials (discovered 3 exits: *Fac x3) -7/Factory (discovered 2 exits: [*Low] / Gar) -7/Garrison (discovered 2 exits: *Fac x2) -7/Factory (discovered 3 exits: *Fac / [*Low] / Gar) -7/Garrison (discovered 3 exits: *Fac x3) -6/Factory -6/Garrison (discovered 2 exits: *Fac x2) -5/Factory (discovered 2 exits: [*Upp] / Gar) -5/Garrison (discovered 4 exits: *Fac x3 / *Fac) -5/Factory (discovered 4 exits: *Fac x3 / Gar) -5/Garrison (discovered 3 exits: *Fac x3) -4/Factory (discovered 3 exits: *Res / [*Upp] / Gar) -4/Garrison (discovered 2 exits: *Fac x2) -4/Factory (discovered 2 exits: [*Ext] / Gar) -4/Garrison (discovered 3 exits: *Res x3) -3/Research -3/Garrison (discovered 3 exits: *Res x3) -3/Research -3/Garrison (discovered 3 exits: *Res x3) -2/Research -2/Garrison (discovered 4 exits: *Res x4) -2/Research -2/Garrison (discovered 3 exits: *Acc x2 / *Res) -2/Research (discovered 3 exits: *Acc / [*Qua] / Gar) -2/Garrison (discovered 3 exits: *Acc x2 / *Res) -2/Research -2/Garrison (discovered 3 exits: *Acc x3) -1/Access To Epsilon Eridani History --------- Turn | Location | Event 14 | -11/Scrapyard | Discovered new exit (range 16) 78 | -11/Scrapyard | Entered Materials 307 | -10/Materials | Build established: Mutant 413 | -10/Materials | Discovered new exit (range 12) 754 | -10/Materials | Discovered new exit (range 11) 1005 | -10/Materials | Discovered new exit (range 4) 1089 | -10/Materials | Discovered new exit (range 15) 1109 | -10/Materials | Central database locked down 1316 | -10/Materials | Entered Mines 1317 | -10/Mines | Assembled infested the area 1319 | -10/Mines | Found the Drone Emporium 1322 | -10/Mines | Assisted by a Guerilla fighting off Assembled 1339 | -10/Mines | Found Prototype Device 1500 | -10/Mines | Discovered new exit (range 13) 1618 | -10/Mines | Deemed a non-threat by the Exiles lab entrance 1618 | -10/Mines | Discovered new exit (range 5) 1625 | -10/Mines | Entered Exiles 1681 | -10/Exiles | Met 8R-AWN 1720 | -10/Exiles | Met EX-HEX 1820 | -10/Exiles | Met EX-DEC 1835 | -10/Exiles | Learned location of Zion (-7) 1878 | -10/Exiles | Met EX-BIN 1940 | -10/Exiles | Aligned with FarCom system 1943 | -10/Exiles | Given EX-Vault access code 2000 | -10/Exiles | Opened EX-Vault 2020 | -10/Exiles | Found AWS/Gauss 2069 | -10/Exiles | Warned to stay clear of 0b10 Research branches 2475 | -10/Exiles | Discovered new exit (range 14) 2494 | -10/Exiles | Left Exiles lab with AWS/Gauss 2494 | -10/Exiles | Entered Mines 2765 | -9/Mines | Discovered new exit (range 8) 2930 | -9/Mines | Entered Materials 2930 | -8/Materials | Evolved 4 slots: Propulsion x1, Utility x2, Weapon x1 2931 | -8/Materials | Identified Bomb Drone Bay 3386 | -8/Materials | Discovered new exit (range 15) 3570 | -8/Materials | Discovered new exit (range 15) 4872 | -8/Materials | Discovered new exit (range 5) 4878 | -8/Materials | Build established: Skirmisher 5096 | -8/Materials | Entered Factory 5096 | -7/Factory | Evolved 2 slots: Utility x2 5250 | -7/Factory | Discovered new exit (range 9) 5298 | -7/Factory | Identified exit to Garrison 5298 | -7/Factory | Entered Garrison 5522 | -7/Garrison | Build established: Scavenger-Tank 5557 | -7/Garrison | Warlord forces raided the area 5604 | -7/Garrison | Triggered checkpoint 5639 | -7/Garrison | Triggered checkpoint 5676 | -7/Garrison | Triggered checkpoint 5701 | -7/Garrison | Discovered new exit (range 9) 5788 | -7/Garrison | Installed Relay Interface Framework 5832 | -7/Garrison | Triggered checkpoint 5837 | -7/Garrison | Garrison Relay disabled 6140 | -7/Garrison | Discovered new exit (range 12) 6242 | -7/Garrison | Triggered checkpoint 6314 | -7/Garrison | Garrison Relay disabled 6437 | -7/Garrison | Rescued a captive Derelict 6449 | -7/Garrison | Garrison Relay disabled 6640 | -7/Garrison | Entered Factory 7092 | -7/Factory | Repaired Prc. Assault Rifle 7346 | -7/Factory | Cargo convoy interrupted 7368 | -7/Factory | Crushed by falling debris 7391 | -7/Factory | Found Prototype Launcher 7391 | -7/Factory | Identified Tesla Bomb Launcher 7590 | -7/Factory | Discovered new exit (range 22) 7626 | -7/Factory | Discovered new exit (range 14) 8077 | -7/Factory | Identified exit to Garrison 8090 | -7/Factory | Entered Garrison 8120 | -7/Garrison | Found embedded Infiltrators 8206 | -7/Garrison | Triggered checkpoint 8228 | -7/Garrison | Garrison Relay disabled 8422 | -7/Garrison | Triggered checkpoint 8432 | -7/Garrison | Triggered checkpoint 8454 | -7/Garrison | Build established: Bothacker-Mutant 8554 | -7/Garrison | Discovered new exit (range 11) 8652 | -7/Garrison | Expanded RIF knowledge: Watcher Feeds 8718 | -7/Garrison | Triggered checkpoint 8736 | -7/Garrison | Garrison Relay disabled 8768 | -7/Garrison | Discovered new exit (range 30) 8768 | -7/Garrison | Discovered new exit (range 56) 8768 | -7/Garrison | Discovered new exit (range 79) 8846 | -7/Garrison | Triggered checkpoint 9079 | -7/Garrison | Entered Factory 9079 | -6/Factory | Evolved 2 slots: Utility x2 9258 | -6/Factory | Identified exit to Garrison 9258 | -6/Factory | Entered Garrison 9496 | -6/Garrison | Garrison Relay disabled 9516 | -6/Garrison | Triggered checkpoint 9530 | -6/Garrison | Triggered checkpoint 9558 | -6/Garrison | Triggered checkpoint 9632 | -6/Garrison | Expanded RIF knowledge: Signal Jamming 9861 | -6/Garrison | Triggered checkpoint 10007 | -6/Garrison | Triggered checkpoint 10084 | -6/Garrison | Triggered checkpoint 10175 | -6/Garrison | Triggered checkpoint 10492 | -6/Garrison | Expanded RIF knowledge: Threat Obfuscation 10502 | -6/Garrison | Discovered new exit (range 15) 10612 | -6/Garrison | Triggered checkpoint 10741 | -6/Garrison | Garrison Relay disabled 10796 | -6/Garrison | Rescued a captive Derelict 10802 | -6/Garrison | Build established: Botlord-Mutant 10954 | -6/Garrison | Triggered checkpoint 10970 | -6/Garrison | Garrison Relay disabled 11076 | -6/Garrison | Discovered new exit (range 13) 11098 | -6/Garrison | Entered Factory 11098 | -5/Factory | Accompanied by 3 allies 11098 | -5/Factory | Evolved 2 slots: Propulsion x1, Utility x1 11178 | -5/Factory | Discovered new exit (range 4) 11532 | -5/Factory | Identified exit to Garrison 11535 | -5/Factory | Entered Garrison 11535 | -5/Garrison | Accompanied by 2 allies 11570 | -5/Garrison | Triggered checkpoint 11618 | -5/Garrison | Garrison Relay disabled 11852 | -5/Garrison | Triggered checkpoint 11876 | -5/Garrison | Discovered new exit (range 6) 11987 | -5/Garrison | Triggered checkpoint 11998 | -5/Garrison | P-70 Sage assimilated allied Soldier 6c 12531 | -5/Garrison | Discovered new exit (range 20) 12576 | -5/Garrison | Triggered checkpoint 12601 | -5/Garrison | Garrison Relay disabled 12804 | -5/Garrison | Triggered checkpoint 12893 | -5/Garrison | Garrison Relay disabled 12920 | -5/Garrison | Triggered checkpoint 13034 | -5/Garrison | Expanded RIF knowledge: Command Fork 13235 | -5/Garrison | Spotted B-75 Beast 13264 | -5/Garrison | Allies destroyed B-75 Beast 13402 | -5/Garrison | Triggered checkpoint 13455 | -5/Garrison | Garrison Relay disabled 13481 | -5/Garrison | Garrison Relay disabled 13685 | -5/Garrison | Discovered new exit (range 13) 13824 | -5/Garrison | Discovered new exit (range 21) 14010 | -5/Garrison | Entered Factory 14739 | -5/Factory | Discovered new exit (range 22) 14912 | -5/Factory | Discovered new exit (range 16) 14967 | -5/Factory | Build established: Botlord-Assassin 15180 | -5/Factory | Discovered new exit (range 11) 15344 | -5/Factory | Repaired Tri-rail Accelerator 15440 | -5/Factory | Repaired Tri-rail Accelerator? 15571 | -5/Factory | Identified exit to Garrison 15571 | -5/Factory | Entered Garrison 15684 | -5/Garrison | Triggered checkpoint 15730 | -5/Garrison | Garrison Relay disabled 15869 | -5/Garrison | Triggered checkpoint 15878 | -5/Garrison | Triggered checkpoint 16140 | -5/Garrison | Triggered checkpoint 16146 | -5/Garrison | Triggered checkpoint 16422 | -5/Garrison | Triggered checkpoint 16437 | -5/Garrison | Garrison Relay disabled 16478 | -5/Garrison | Expanded RIF knowledge: Alert ID Control 16611 | -5/Garrison | Discovered new exit (range 12) 16642 | -5/Garrison | Triggered checkpoint 16763 | -5/Garrison | Garrison Relay disabled 17086 | -5/Garrison | Phase Generator disabled 17128 | -5/Garrison | Garrison Relay disabled 17177 | -5/Garrison | Discovered new exit (range 10) 17385 | -5/Garrison | Build established: Botlord-Mutant 17562 | -5/Garrison | Triggered checkpoint 17643 | -5/Garrison | Triggered checkpoint 17665 | -5/Garrison | Assimilated ARC 6a with formatsys_deep 17687 | -5/Garrison | Garrison Relay disabled 17713 | -5/Garrison | Discovered new exit (range 22) 17725 | -5/Garrison | Triggered checkpoint 17744 | -5/Garrison | Assimilated ARC 6b with formatsys_deep 17823 | -5/Garrison | Entered Factory 17823 | -4/Factory | Accompanied by 5 allies 17823 | -4/Factory | Evolved 2 slots: Power x1, Utility x1 18187 | -4/Factory | Spotted B-86 Titan 18210 | -4/Factory | Allies destroyed B-86 Titan 18351 | -4/Factory | Discovered new exit (range 2) 18373 | -4/Factory | Discovered new exit (range 11) 18693 | -4/Factory | Repaired Hrd. Heavy Armor Plating 18769 | -4/Factory | Repaired Adv. Heavy Siege Treads 18965 | -4/Factory | Found Prototype Launcher 18965 | -4/Factory | Identified Com. Tesla Bomb Launcher 19145 | -4/Factory | P-70 Sage assimilated allied Veteran 7f 19148 | -4/Factory | P-70 Sage assimilated allied Assassin 7b 19148 | -4/Factory | P-70 Sage assimilated allied Veteran 7d 19310 | -4/Factory | Identified exit to Garrison 19310 | -4/Factory | Entered Garrison 19310 | -4/Garrison | Accompanied by 3 allies 19355 | -4/Garrison | Triggered checkpoint 19437 | -4/Garrison | Garrison Relay disabled 19700 | -4/Garrison | Triggered checkpoint 19701 | -4/Garrison | Triggered checkpoint 19718 | -4/Garrison | Triggered checkpoint 19856 | -4/Garrison | Triggered checkpoint 19898 | -4/Garrison | Discovered new exit (range 22) 19996 | -4/Garrison | Triggered checkpoint 20043 | -4/Garrison | Garrison Relay disabled 20248 | -4/Garrison | Triggered checkpoint 20300 | -4/Garrison | Garrison Relay disabled 20435 | -4/Garrison | Rescued a captive Derelict 20478 | -4/Garrison | Garrison Relay disabled 20618 | -4/Garrison | Spotted B-86 Titan 20682 | -4/Garrison | Garrison Relay disabled 20692 | -4/Garrison | Triggered checkpoint 20770 | -4/Garrison | Expanded RIF knowledge: Autooverride 20817 | -4/Garrison | Discovered new exit (range 3) 21048 | -4/Garrison | Entered Factory 21048 | -4/Factory | Accompanied by 8 allies 21513 | -4/Factory | Discovered new exit (range 22) 22077 | -4/Factory | P-70 Sage assimilated allied Sentinel 7f 22271 | -4/Factory | Identified exit to Garrison 22276 | -4/Factory | Entered Garrison 22276 | -4/Garrison | Accompanied by 11 allies 22316 | -4/Garrison | Garrison Relay disabled 22403 | -4/Garrison | Triggered checkpoint 22488 | -4/Garrison | Garrison Relay disabled 22776 | -4/Garrison | Found embedded Infiltrators 22821 | -4/Garrison | Spotted B-86 Titan 22832 | -4/Garrison | Triggered checkpoint 22833 | -4/Garrison | Allies destroyed B-86 Titan 22834 | -4/Garrison | Triggered checkpoint 22851 | -4/Garrison | Triggered checkpoint 22862 | -4/Garrison | Triggered checkpoint 22886 | -4/Garrison | P-70 Sage assimilated allied Sentinel 7e 23052 | -4/Garrison | Triggered checkpoint 23115 | -4/Garrison | Garrison Relay disabled 23144 | -4/Garrison | Garrison Relay disabled 23227 | -4/Garrison | Triggered checkpoint 23291 | -4/Garrison | Discovered new exit (range 13) 23523 | -4/Garrison | Discovered new exit (range 10) 23565 | -4/Garrison | Triggered checkpoint 23659 | -4/Garrison | Garrison Relay disabled 23723 | -4/Garrison | Expanded RIF knowledge: Autooverride 23902 | -4/Garrison | Triggered checkpoint 23939 | -4/Garrison | Garrison Relay disabled 24027 | -4/Garrison | Discovered new exit (range 12) 24606 | -4/Garrison | Expanded RIF knowledge: Program Shield 24718 | -4/Garrison | Entered Research 24718 | -3/Research | Accompanied by 13 allies 24718 | -3/Research | Evolved 2 slots: Utility x2 25015 | -3/Research | Garrison activated, responded to threat 25094 | -3/Research | Identified exit to Garrison 25094 | -3/Research | Entered Garrison 25094 | -3/Garrison | Accompanied by 6 allies 25142 | -3/Garrison | Triggered checkpoint 25158 | -3/Garrison | Garrison Relay disabled 25420 | -3/Garrison | Triggered checkpoint 25492 | -3/Garrison | Triggered checkpoint 25557 | -3/Garrison | Triggered checkpoint 25632 | -3/Garrison | Triggered checkpoint 25677 | -3/Garrison | Assimilated ARC 8a with formatsys_deep 25753 | -3/Garrison | Discovered new exit (range 8) 25848 | -3/Garrison | Garrison Relay disabled 26026 | -3/Garrison | Triggered checkpoint 26046 | -3/Garrison | Garrison Relay disabled 26053 | -3/Garrison | Found embedded Infiltrators 26151 | -3/Garrison | Discovered new exit (range 14) 26293 | -3/Garrison | Discovered new exit (range 23) 26339 | -3/Garrison | Spotted B-75 Beast 26340 | -3/Garrison | Spotted B-86 Titan 26355 | -3/Garrison | Allies destroyed B-75 Beast 26360 | -3/Garrison | Allies destroyed B-86 Titan 26363 | -3/Garrison | Rewired B-75 Beast 26472 | -3/Garrison | Triggered checkpoint 26518 | -3/Garrison | Expanded RIF knowledge: Autoassimilate 26565 | -3/Garrison | Garrison Relay disabled 26680 | -3/Garrison | Triggered checkpoint 26830 | -3/Garrison | Entered Research 26830 | -3/Research | Accompanied by 23 allies 27083 | -3/Research | Garrison activated, responded to threat 27117 | -3/Research | First assault squad dispatched 27122 | -3/Research | Found Antimissile System 27155 | -3/Research | Assimilated ARC 8b with formatsys_deep 27174 | -3/Research | Identified exit to Garrison 27183 | -3/Research | Entered Garrison 27183 | -3/Garrison | Accompanied by 22 allies 27183 | -3/Garrison | 1 ally did not survive the journey 27222 | -3/Garrison | Triggered checkpoint 27253 | -3/Garrison | Garrison Relay disabled 27404 | -3/Garrison | Garrison Relay disabled 27410 | -3/Garrison | Garrison Relay disabled 27417 | -3/Garrison | Garrison Relay disabled 27422 | -3/Garrison | Garrison Relay disabled 27466 | -3/Garrison | Triggered checkpoint 27467 | -3/Garrison | Triggered checkpoint 27546 | -3/Garrison | Triggered checkpoint 27669 | -3/Garrison | Found embedded Infiltrators 27838 | -3/Garrison | Discovered new exit (range 20) 27892 | -3/Garrison | Triggered checkpoint 27914 | -3/Garrison | Garrison Relay disabled 28096 | -3/Garrison | Discovered new exit (range 11) 28138 | -3/Garrison | Triggered checkpoint 28215 | -3/Garrison | Expanded RIF knowledge: Crosswire 28236 | -3/Garrison | Garrison Relay disabled 28522 | -3/Garrison | Discovered new exit (range 10) 28557 | -3/Garrison | Garrison Relay disabled 28711 | -3/Garrison | Entered Research 28711 | -2/Research | Accompanied by 19 allies 28711 | -2/Research | Evolved 2 slots: Utility x2 28736 | -2/Research | Garrison activated, responded to threat 28868 | -2/Research | Identified exit to Garrison 28899 | -2/Research | Entered Garrison 28899 | -2/Garrison | Accompanied by 18 allies 29000 | -2/Garrison | Triggered checkpoint 29039 | -2/Garrison | Garrison Relay disabled 29136 | -2/Garrison | Spotted B-90 Cyclops 29138 | -2/Garrison | Triggered checkpoint 29143 | -2/Garrison | Triggered checkpoint 29148 | -2/Garrison | Triggered checkpoint 29148 | -2/Garrison | Triggered checkpoint 29253 | -2/Garrison | Allies destroyed B-90 Cyclops 29423 | -2/Garrison | Discovered new exit (range 12) 29436 | -2/Garrison | Expanded RIF knowledge: Threat Obfuscation 29500 | -2/Garrison | Triggered checkpoint 29527 | -2/Garrison | Garrison Relay disabled 29578 | -2/Garrison | Garrison Relay disabled 29820 | -2/Garrison | Discovered new exit (range 14) 29917 | -2/Garrison | Triggered checkpoint 29948 | -2/Garrison | Garrison Relay disabled 30176 | -2/Garrison | Triggered checkpoint 30259 | -2/Garrison | Discovered new exit (range 5) 30563 | -2/Garrison | Discovered new exit (range 13) 30599 | -2/Garrison | Triggered checkpoint 30627 | -2/Garrison | Garrison Relay disabled 30762 | -2/Garrison | Entered Research 30762 | -2/Research | Accompanied by 30 allies 30892 | -2/Research | Found Antimissile System 31030 | -2/Research | Identified exit to Garrison 31043 | -2/Research | Entered Garrison 31043 | -2/Garrison | Accompanied by 32 allies 31053 | -2/Garrison | Spotted B-75 Beast 31062 | -2/Garrison | Rewired B-86 Titan 31066 | -2/Garrison | Rewired B-86 Titan 31075 | -2/Garrison | Allies destroyed B-75 Beast 31228 | -2/Garrison | Spotted B-90 Cyclops 31230 | -2/Garrison | Triggered checkpoint 31237 | -2/Garrison | Triggered checkpoint 31248 | -2/Garrison | Triggered checkpoint 31664 | -2/Garrison | Triggered checkpoint 31780 | -2/Garrison | Triggered checkpoint 31794 | -2/Garrison | Garrison Relay disabled 32006 | -2/Garrison | Triggered checkpoint 32216 | -2/Garrison | Triggered checkpoint 32221 | -2/Garrison | Garrison Relay disabled 32268 | -2/Garrison | Learned Access security intel 32340 | -2/Garrison | Discovered new exit (range 11) 32634 | -2/Garrison | Triggered checkpoint 32685 | -2/Garrison | Expanded RIF knowledge: Autooverride 32705 | -2/Garrison | Garrison Relay disabled 32803 | -2/Garrison | Discovered new exit (range 8) 32826 | -2/Garrison | Triggered checkpoint 32838 | -2/Garrison | Discovered new exit (range 5) 33382 | -2/Garrison | Entered Research 33382 | -2/Research | Accompanied by 25 allies 33384 | -2/Research | Discovered new exit (range 9) 33594 | -2/Research | Assembled infested ambush trap array 33735 | -2/Research | Garrison activated, responded to threat 34718 | -2/Research | Spotted B-90 Cyclops 35836 | -2/Research | Found Unknown Launcher 35836 | -2/Research | Identified Fusion Bomb Launcher 37009 | -2/Research | System corruption reached 10% 37012 | -2/Research | P-80 Master assimilated allied Rainmaker 9b 37060 | -2/Research | Lost 4 parts (4u) 37193 | -2/Research | Discovered new exit (range 5) 37491 | -2/Research | Identified exit to Garrison 37491 | -2/Research | Entered Garrison 37491 | -2/Garrison | Accompanied by 3 allies 37534 | -2/Garrison | Triggered checkpoint 37583 | -2/Garrison | Garrison Relay disabled 37669 | -2/Garrison | Triggered checkpoint 37770 | -2/Garrison | Triggered checkpoint 37777 | -2/Garrison | Expanded RIF knowledge: Threat Obfuscation 37842 | -2/Garrison | Triggered checkpoint 37883 | -2/Garrison | Garrison Relay disabled 38004 | -2/Garrison | Spotted B-90 Cyclops 38028 | -2/Garrison | Triggered checkpoint 38032 | -2/Garrison | Triggered checkpoint 38300 | -2/Garrison | Triggered checkpoint 38301 | -2/Garrison | Triggered checkpoint 38306 | -2/Garrison | Triggered checkpoint 38346 | -2/Garrison | Discovered new exit (range 14) 38573 | -2/Garrison | Garrison Relay disabled 38624 | -2/Garrison | Found Adv. Powered Armor 38627 | -2/Garrison | Found Adv. Powered Armor 38632 | -2/Garrison | Found Adv. Powered Armor 38636 | -2/Garrison | Found Adv. Powered Armor 38639 | -2/Garrison | Found Adv. Powered Armor 38676 | -2/Garrison | Garrison Relay disabled 38918 | -2/Garrison | Discovered new exit (range 13) 38938 | -2/Garrison | Triggered checkpoint 39007 | -2/Garrison | Discovered new exit (range 5) 39094 | -2/Garrison | Triggered checkpoint 39133 | -2/Garrison | Garrison Relay disabled 39321 | -2/Garrison | Entered Research 39321 | -2/Research | Accompanied by 13 allies 39730 | -2/Research | Identified exit to Garrison 39746 | -2/Research | Entered Garrison 39746 | -2/Garrison | Accompanied by 12 allies 39748 | -2/Garrison | Triggered checkpoint 39791 | -2/Garrison | Garrison Relay disabled 39848 | -2/Garrison | Rescued a captive Derelict 40283 | -2/Garrison | Triggered checkpoint 40285 | -2/Garrison | Spotted B-90 Cyclops 40290 | -2/Garrison | Triggered checkpoint 40294 | -2/Garrison | Triggered checkpoint 40299 | -2/Garrison | Triggered checkpoint 40322 | -2/Garrison | Allies destroyed B-90 Cyclops 40443 | -2/Garrison | Discovered new exit (range 14) 40478 | -2/Garrison | Triggered checkpoint 40506 | -2/Garrison | Garrison Relay disabled 40645 | -2/Garrison | Triggered checkpoint 40682 | -2/Garrison | Garrison Relay disabled 40728 | -2/Garrison | Triggered checkpoint 40850 | -2/Garrison | Discovered new exit (range 14) 41035 | -2/Garrison | Heavy support dispatched to Access 41043 | -2/Garrison | Expanded RIF knowledge: Zone Cloak 41295 | -2/Garrison | Discovered new exit (range 13) 41620 | -2/Garrison | Found Unknown Hackware 41944 | -2/Garrison | Triggered checkpoint 42004 | -2/Garrison | Garrison Relay disabled 42138 | -2/Garrison | Entered Access 42138 | -1/Access | Accompanied by 1 ally 42138 | -1/Access | Evolved 2 slots: Power x1, Utility x1 43178 | -1/Access | Discovered new exit (range 6) 43199 | -1/Access | Spotted B-99 Colossus 43306 | -1/Access | Destroyed B-99 Colossus 43345 | -1/Access | Spotted B-99 Colossus 43373 | -1/Access | Destroyed B-99 Colossus 44202 | -1/Access | Found Nanosword 44343 | -1/Access | Spotted B-99 Colossus 44344 | -1/Access | Autoassimilated Colossus 10a with RIF 45804 | -1/Access | Spotted B-99 Colossus 46744 | -1/Access | Identified Relay Coupler [Proto] 46752 | *** | Escaped! Last Messages --------------- 46552_ U-05 Engineer builds a Wall. 46567_ System corrupted: Energy discharge (-136). 46567_ U-05 Engineer builds a Wall. 46571_ Sneak attack on T-07 Excavator. 46571_ T-07 Excavator destroyed. 46584_ System corrupted: Component data lost. 46617_ U-05 Engineer builds a Wall. 46622_ System corrupted: Heat flow error (+251). 46627_ U-05 Engineer builds a Wall. 46648_ System corrupted: Matter fused (-8). 46657_ Acquired 8 matter. 46672_ System corrupted: Matter fused (-8). 46688_ ALERT: Rogue bot located, Programmers report to Access Zone 3A. 46696_ Acquired 8 matter. 46703_ System corrupted: Matter fused (-7). 46704_ Acquired 3 matter. 46727_ Acquired 4 matter. 46744_ Identified Relay Coupler [Proto]. 46746_ Acquired 6 matter. Map ----- +----------------------------------------------------+ | # # #???????????##+########?????? | | # # ! #???????????# ??????? | | # # #???????????# ?????? | | # ###########???????????# """"""????? | | # #?????????????????????# """"""????? | | = # #?????????????????????# """""?????? | | + #?????????????????????# """"??????? | | # #?????????????????????# ""????????? | | # #?????????????????????# *%= ?????????? | | ######### ##?##?????????????????? =%[ ??????????? | | ######## ########################/############# | | % %%% %% % % % | | % % % % % % | | ##### ######### ### ####/###### | | ######+####??#??## "#?# %= # #? | | # #???# ""#?# = # #? | | # #???# T#?# %= # #? | | # #???# ""#?# [ # = ## | | # #???# ""#?# # + | | # #??## "### =%[# ## | | # #??# g ## # ## | | # #??## ### # # | | # "" "" #???# H o % #?# # [ # | | # ""R"" #???# H #?# ########## | | # """" ?#???#% #?# #????????# | | # ????# g@BB #?# #????????# | | # ????# "BB #?# #????????# | | ####+#########???# #?# ##????????# | | #??# #???????????# #?# #?????????# | | #??# #???????????# #?# #?????????# | | #??# #???????????#" " "" "#?# #?????????## | | #### #########????" """"" "??# #??????????? | | ##???" "???"" "??# #??????????? | | %* ##??#" """""" "#?# ???????????? | | / #???# #?? ???????????? | | % #???# !% #????? ???????????? | | ^ #???# % #?????????????????? | | #???# #?????????????????? | | ^ ^ #???# #?????????????????? | | #???# #?????????????????? | | #???# #??????#??????????? | | #???#### ###### ##?????????? | | #??????# #?????????? | | ######+## #??????# % ? | | ?# # #??????# ? | | ?# # #??????# ?? | | ?# # ######### ##### ?? | | ?# + ######## ###?????????? | | ?#[ # ##########+##########?#???????????? | | ?# # ## #? #?????????????? | +----------------------------------------------------+ Best States ------------- Heat Dissipation 68 Coolant Potential 65 Energy Generation 45 Energy Capacity 600 Matter Stores 300 Matter Capacity 300 Sight Range 23 Terrain Scan Density 10 Armor Coverage 1650 Propulsion Shielding 66 Point Defense Rating 240 Evasion (%) 55 Targeting Accuracy 16 Target Analysis 5 Recoil Reduction 4 Matter Filtering 50 Kinecelleration 40 Relay Coupler Types 11 Relay Coupler Value 394 Item Schematics ----------------- None Robot Schematics ------------------ None Fabricated ------------ Nothing Alien Tech Used ----------------- None Achievements -------------- None Challenges ------------ None Game ------ Seed AdvancedFlightSteel Manual? 0 Play Time 14:00:43 Cumulative 449.5 hours Start 2022.07.05 @ 08:01:02 End 2022.07.26 @ 12:15:18 Sessions 15 Manual Loads 0 Difficulty Rogue Special Mode None Game No. 121 Rogue 121 Adventurer 0 Explorer 0 Win Type 0 Total 30 Types 23/0/2/2/0/1/1/1/0 Lore% 44 Gallery% 82 Achievement% 84 Wizard Run 0 Options --------- ASCII 0 Keyboard 1 Movement Numpad Keybinds 0 Fullscreen 2 Font 20/SmallcapsGlow Map View 66x50 Tactical HUD 1 Map Filters NONE Filters NONE Steam 1 RUN: 28378885-fb83-4f9d-a0ef-c561b32f1e0b